Cogmind - Beta 16 @@@ ROGUE MODE // 2025.11.02 @ 22:13:13 Player: Darcyisverycute Result: Escaped! Performance ------------- Evolutions (9) 4500 Regions Visited (32) 6400 Robots Destroyed (411) 2055 Value Destroyed (28920) 28920 Prototype IDs (83) 1660 Alien Tech Used (0) 0 Bonus (30114) 30114 TOTAL SCORE: 73649 Bonus ------- High Alert Combat Kills 4636 Follower Combat Kills 9471 Entered Garrisons 2200 Used RIF Installer 6000 Aligned with FarCom 300 Destroyed MAIN.C Guards 500 Met MAIN.C 5000 Win 3000 Friendly Fire -993 Cogmind --------- Core Integrity 1300/1600 Matter 217/300 Energy 238/250 System Corruption 13% Temperature Cool (24) Movement Hovering (35) Location To Epsilon Eridani Parts ------- > --- POWER (3) -------- Micro Antimatter Reactor Micro Antimatter Reactor Micro Antimatter Reactor > --- PROPULSION (8) --- Improved Linear Gravjet Cooled Antigrav System Combat Linear Gravjet Combat Linear Gravjet Combat Linear Gravjet Combat Linear Gravjet Combat Linear Gravjet > --- UTILITY (12) ----- Advanced Cooling System High-capacity Storage Unit Quantum Capacitor Advanced Reaction Control System Graphene Brace Relay Coupler [Hunter] (2) Relay Coupler [Proto] (1) > --- WEAPON (2) ------- Enhanced Hardcell Cannon > --- INVENTORY (20) --- Micro Antimatter Reactor Micro Antimatter Reactor Armored Huge Wheel Combat Linear Gravjet Combat Linear Gravjet Advanced Cooling System Matter Filter Improved Particle Charger Medium Armor Plating Relay Coupler [Grunt] (33) Relay Coupler [Grunt] (32) Relay Coupler [Specialist] (38) Compact HERF Cannon Battle Cannon Linear Accelerator Enhanced Hardcell Cannon Advanced Remote Datajack Improved Plasma Cutter Peak State ------------ > --- POWER ------------ Micro Antimatter Reactor Micro Antimatter Reactor Micro Antimatter Reactor > --- PROPULSION ------- Improved Linear Gravjet Cooled Antigrav System Combat Linear Gravjet Combat Linear Gravjet Combat Linear Gravjet Combat Linear Gravjet Combat Linear Gravjet Combat Linear Gravjet > --- UTILITY ---------- Advanced Cryofiber Web Advanced Heat Sink Advanced Cooling System Advanced Cooling System High-capacity Storage Unit Improved Particle Charger Advanced Reaction Control System Graphene Brace Relay Coupler [Hunter] Relay Coupler [Proto] Relay Coupler [Proto] Relay Coupler [Proto] > --- WEAPON ----------- Enhanced Nova Cannon Enhanced Hardcell Cannon > --- INVENTORY -------- Micro Antimatter Reactor Combat Linear Gravjet Combat Linear Gravjet Quantum Capacitor Advanced Powered Armor Improved Shock Absorption System Advanced Point Defense System Relay Coupler [Grunt] Relay Coupler [Grunt] Relay Coupler [Specialist] Compact HERF Cannon Linear Accelerator Enhanced Hardcell Cannon Advanced Remote Datajack Improved Plasma Cutter [Rating: 199] Favorites ----------- Power Light Quantum Reactor Engine Heavy Deuterium Engine Power Core Light Nuclear Core Reactor Light Quantum Reactor Propulsion Combat Linear Gravjet Treads Light Treads Wheel Compact Wheel Hover Unit Combat Linear Gravjet Flight Unit Xenon Bombardment Thruster Utility High-capacity Storage Unit Device Advanced Cooling System Storage High-capacity Storage Unit Processor Corruption Screen Hackware Relay Coupler [Grunt] Protection Improved Medium Armor Plating Weapon Enhanced Nova Cannon Energy Gun Medium Laser Energy Cannon Enhanced Nova Cannon Ballistic Gun Assault Rifle Ballistic Cannon Gauss Cannon Launcher Grenade Launcher Special Weapon Advanced Remote Datajack Slashing Weapon Katana Build | -11 -10 -10 -10 -9 -8 -8 -8 -8 -7 -7 -7 -7 -6 -6 -5 -5 -5 -5 -4 -4 -4 -4 -3 -3 -3 -3 -3 -3 -2 -2 -1 -1 ------- Run | Yrd Mat Min Exi Min Mat Gar Mat Gar Fac Gar Fac Gar Fac Gar Fac Was Fac Gar Fac Was Fac Gar Res Gar Res Gar Res Gar Res Gar Acc Com Slots Evolved 18 | . . . . . 4 . . . 2 . . . 2 . 2 . . . 2 . . . 2 . . . . . 2 . 2 . Power 2 | . . . . . . . . . . . . . . . . . . . 1 . . . . . . . . . 1 . . . Propulsion 6 | . . . . . 1 . . . 1 . . . . . 2 . . . 1 . . . 1 . . . . . . . . . Utility 10 | . . . . . 3 . . . 1 . . . 2 . . . . . . . . . 1 . . . . . 1 . 2 . Weapon . | . . . . . . . . . . . . . . . . . . . . . . . . . . . . . . . . . Parts Attached 371 | 8 9 . 2 3 6 14 13 13 28 1 4 8 4 16 8 1 12 16 10 5 7 8 8 19 23 14 8 10 11 41 13 28 Power 36 | 1 1 . . . . 1 2 1 1 1 . . . 1 . . . 2 1 . . . 2 4 1 2 . 2 3 6 1 3 Engine 6 | 1 . . . . . . 2 1 1 1 . . . . . . . . . . . . . . . . . . . . . . Core 5 | . 1 . . . . 1 . . . . . . . . . . . . . . . . . 1 1 . . . . 1 . . Reactor 25 | . . . . . . . . . . . . . . 1 . . . 2 1 . . . 2 3 . 2 . 2 3 5 1 3 Propulsion 60 | 2 . . . . 1 3 2 . 6 . 2 . . 6 4 . . . 1 2 . . 1 4 2 2 5 2 3 10 1 1 Treads 35 | 2 . . . . . 2 2 . 4 . 1 . . 6 . . . . . . . . . 4 2 2 5 2 3 . . . Leg . | . . . . . . . . . . . . . . . . . . . . . . . . . . . . . . . . . Wheel 4 | . . . . . 1 1 . . 2 . . . . . . . . . . . . . . . . . . . . . . . Hover 18 | . . . . . . . . . . . . . . . 4 . . . 1 2 . . 1 . . . . . . 8 1 1 Flight 3 | . . . . . . . . . . . 1 . . . . . . . . . . . . . . . . . . 2 . . Utility 201 | 2 4 . . 1 3 6 7 10 13 . 1 4 4 7 4 1 9 11 7 2 6 7 4 9 13 8 1 6 4 20 9 18 Device 63 | 1 1 . . 1 2 3 . 2 2 . . . . . 2 . 2 5 5 2 3 . 2 2 4 2 . 2 1 7 3 9 Storage 9 | 1 1 . . . . . . . . . . 1 . . 1 . . 1 . . 2 . . . . . . . . . . 2 Processor 11 | . . . . . 1 . . . 2 . . . 1 . . . 2 1 . . . . 1 . . 1 . . . 1 . 1 Hackware 102 | . . . . . . . 6 8 7 . 1 2 3 6 1 1 2 4 2 . 1 7 1 7 9 5 1 4 3 10 5 6 Protection 16 | . 2 . . . . 3 1 . 2 . . 1 . 1 . . 3 . . . . . . . . . . . . 2 1 . Artifact . | . . . . . . . . . . . . . . . . . . . . . . . . . . . . . . . . . Weapon 74 | 3 4 . 2 2 2 4 2 2 8 . 1 4 . 2 . . 3 3 1 1 1 1 1 2 7 2 2 . 1 5 2 6 Energy Gun 11 | 1 . . . 1 1 . 1 1 1 . . 1 . . . . . . . 1 . . . . . . . . . 2 1 . Energy Cannon 26 | . 2 . 2 . . 1 . . 3 . 1 2 . 1 . . . 2 . . . 1 . 2 2 2 1 . 1 . 1 2 Ballistic Gun 7 | 2 . . . . . . . . 1 . . . . . . . . 1 . . 1 . . . 2 . . . . . . . Ballistic Cannon 11 | . . . . 1 . . . 1 1 . . 1 . . . . . . . . . . . . 2 . . . . 1 . 4 Launcher 7 | . 1 . . . 1 . . . 2 . . . . . . . 1 . . . . . . . 1 . . . . 1 . . Special Weapon 10 | . 1 . . . . 1 1 . . . . . . 1 . . 2 . 1 . . . 1 . . . 1 . . 1 . . Impact Weapon . | . . . . . . . . . . . . . . . . . . . . . . . . . . . . . . . . . Slashing Weapon 2 | . . . . . . 2 . . . . . . . . . . . . . . . . . . . . . . . . . . Piercing Weapon . | . . . . . . . . . . . . . . . . . . . . . . . . . . . . . . . . . Special Melee Weapon . | . . . . . . . . . . . . . . . . . . . . . . . . . . . . . . . . . Unidentified Prototypes 25 | . 1 . . . 1 . 1 . 3 . 1 . . . . . . . 1 2 3 . . . 2 . . 1 . 6 1 2 Corrupted Parts 5 | . . . . 3 . . . . . . . . . . . . . . . . . . . . 1 . . . . 1 . . System Corruption 24 | . . . . 7 . . . . . . . . . . . . . . . . . . . . 11 . . . . 6 . . Parts Lost 39 | . . . . . 1 2 . . 2 . . 1 . 1 . . . 2 1 . . 1 . 5 5 . . 1 2 6 1 8 Power 7 | . . . . . . . . . . . . . . . . . . 1 . . . . . 2 . . . . 1 1 1 1 Propulsion 6 | . . . . . . 2 . . 1 . . . . . . . . . . . . . . 1 . . . . . 1 . 1 Utility 21 | . . . . . 1 . . . 1 . . 1 . 1 . . . 1 1 . . . . 1 3 . . 1 1 3 . 6 Weapon 5 | . . . . . . . . . . . . . . . . . . . . . . 1 . 1 2 . . . . 1 . . Highest Loss Streak 3 | . . . . . 1 1 . . 2 . . 1 . 1 . . . 1 1 . . 1 . 3 2 . . 1 2 2 1 2 To Critical Strikes 1 | . . . . . . 1 . . . . . . . . . . . . . . . . . . . . . . . . . . Average Backups 18 | 3 18 20 19 19 19 19 18 18 18 18 18 18 18 18 17 16 15 15 16 16 16 16 16 16 17 19 19 19 18 19 19 18 Power . | . 1 2 2 1 1 . . . . . . . . . . . . . . 1 . . . . 1 . . . . . 1 1 Propulsion 1 | 1 2 2 2 2 1 . . 1 . . . . . . 2 . . 1 . 1 1 1 . . 1 5 6 6 8 5 1 2 Utility 10 | . 9 10 9 9 8 12 11 10 10 10 10 10 10 10 9 10 9 9 11 10 11 11 13 13 12 10 10 10 8 10 14 9 Weapon 3 | . 5 6 5 5 6 3 4 4 5 6 5 5 5 4 2 3 3 2 1 2 2 2 1 1 1 2 2 . 1 1 1 3 Tool/Special . | . . . . . . . . . . . . . . . . . . . . . . . . . . . . . . . . . Unused Backups 69 | . 2 . . 3 2 10 . 1 . . . 3 . 6 . 2 3 7 1 . 2 3 . 1 2 4 . 3 1 2 2 9 Power 9 | . 1 . . . . 1 . . . . . . . . . . 1 2 . . 1 . . . . 1 . . . . 1 1 Propulsion 7 | . . . . . . . . . . . . . . . . . . 1 . . . . . . . 1 . . 1 . 1 3 Utility 47 | . . . . 1 2 8 . 1 . . . 3 . 5 . 2 2 4 1 . 1 3 . 1 2 1 . 3 . 2 . 5 Weapon 6 | . 1 . . 2 . 1 . . . . . . . 1 . . . . . . . . . . . 1 . . . . . . Tool/Special . | . . . . . . . . . . . . . . . . . . . . . . . . . . . . . . . . . Average Slot Usage (%) 89 | . 100 100 100 100 95 99 99 97 98 100 99 99 95 99 87 88 86 85 83 84 83 83 84 75 68 75 75 75 76 82 91 91 Engine 2 | . 6 . . . . . 3 9 7 7 7 7 6 4 . . . . . . . . . . . . . . . . . . Core 2 | . 7 14 14 14 9 9 5 . . . . . . . . . . . . . . . . 1 . . . . . 1 . . Reactor 4 | . . . . . . . . . . . . . . 1 5 5 5 4 10 10 10 10 9 6 8 8 9 9 12 11 11 11 Treads 14 | . 28 28 28 28 18 13 18 18 22 23 23 23 20 24 . . . . . . . . . 4 19 19 19 18 17 11 . . Wheel 2 | . . . . . 8 12 9 9 7 7 6 7 6 . . . . . . . . . . . . . . . . . . . Hover 7 | . . . . . . . . . . . . . . . 21 23 23 23 25 26 26 26 27 17 . . . . . 8 32 31 Device 14 | . 10 14 14 14 24 17 4 9 8 15 15 8 6 3 5 11 9 14 15 21 18 22 22 20 8 19 15 20 19 21 22 23 Storage 6 | . 14 14 14 14 9 9 9 9 7 7 7 7 8 6 6 5 5 6 5 5 5 5 4 4 4 4 4 4 4 4 4 4 Processor 3 | . . . . . 8 4 . . 7 7 7 7 8 13 9 5 10 7 3 . . . 3 4 1 3 4 4 4 3 . . Hackware 8 | . . . . . . . 23 13 11 1 1 1 12 22 15 17 13 5 11 10 11 7 4 4 14 8 11 7 8 7 12 10 Protection 5 | . 3 . . . . 13 7 10 7 13 13 18 11 6 5 5 3 6 . . . . . . 2 . . . . . 4 2 Energy Cannon 5 | . 7 . 9 . . 6 9 8 3 7 7 14 7 8 6 5 4 5 5 5 4 5 7 3 3 4 3 5 4 4 2 2 Ballistic Gun 1 | . 14 14 14 12 . . . . . . . . . . . . . . . . . . . . . . . . . . . . Ballistic Cannon 1 | . . . . 1 7 4 . 6 2 . . . 3 . . . . . . . . . . . . . . . . . . . Launcher 1 | . 2 14 4 11 3 4 . . . . . . . . . . . 1 . . . . . . . . . . . . . . Special Weapon 2 | . . . . . . . 8 2 3 7 6 . 1 3 3 5 5 2 4 5 5 4 . 3 3 3 4 2 4 3 1 2 Peak Build Rating 199 | 7 15 12 21 23 32 37 37 44 53 55 56 56 61 75 99 97 110 120 134 136 136 142 151 162 162 166 166 172 181 190 193 199 Average Rating 96 | 5 11 12 15 14 29 32 33 36 43 53 53 53 57 60 96 96 101 108 129 135 130 135 149 141 153 159 159 166 176 175 184 183 On Entrance 90 | . 7 12 12 15 23 23 34 33 38 52 53 51 51 58 74 97 97 99 115 134 132 127 139 149 161 156 160 166 171 175 179 182 Avg Prop Armor Cover (%) 12 | . . . . . 17 9 17 12 14 14 16 15 16 14 . . . . . . . . . 2 4 . . . . 3 . 4 Naked Turns . | . . . . . . . . . . . . . . . . . . . . . . . . . . . . . . . . . Heaviest Build 140 | 13 56 51 58 59 65 82 70 80 84 84 88 88 83 77 74 67 112 113 89 83 84 91 103 136 140 111 98 100 113 129 122 131 Greatest Support 320 | 40 40 40 40 40 40 26 16 46 71 68 12 71 12 110 84 84 84 84 94 94 92 92 110 320 320 295 300 295 295 295 122 122 Greatest Overweight (x) 34 | . 1 1 1 1 6 6 4 4 8 6 7 7 6 6 . . 22 1 . 1 . . 1 34 . . . . . 1 1 1 Average Overweight (x) 1 | . . 1 1 1 5 3 3 3 3 5 6 5 5 . . . . . . . . . . . . . . . . . . . Largest Inventory Capacity 20 | 8 20 20 20 20 20 20 20 20 20 20 20 20 20 20 20 20 20 20 20 20 20 20 20 20 20 20 20 20 20 20 20 20 Average Capacity 19 | 5 19 20 20 20 20 20 20 20 20 20 20 20 20 20 20 20 20 20 20 20 20 20 20 20 20 20 20 20 20 20 20 20 Most Carried 20 | 6 20 20 20 20 20 20 20 20 20 20 20 20 20 20 20 20 20 20 20 20 20 20 20 20 20 20 20 20 20 20 20 20 Average Carried 19 | 3 18 20 19 19 19 19 19 19 19 19 19 19 19 19 19 19 19 19 19 19 19 19 19 19 18 19 19 19 18 19 19 18 Final Capacity 20 | 8 20 20 20 20 20 20 20 20 20 20 20 20 20 20 20 20 20 20 20 20 20 20 20 20 20 20 20 20 20 20 20 20 Final Carried 20 | 6 20 20 20 20 20 20 20 20 19 20 20 20 20 20 20 20 20 20 19 19 20 20 20 20 20 20 19 20 20 20 19 19 Class Distribution -------------------- 55% | Botlord-Mutant 20% | Mutant 17% | Bothacker-Mutant Dominant Class ---------------- Mutant | -10/Materials Mutant | -10/Mines Mutant | -10/Exiles Mutant | -9/Mines Skirmisher | -8/Materials Mutant | -8/Garrison Bothacker-Mutant | -8/Materials Bothacker-Mutant | -8/Garrison Bothacker-Mutant | -7/Factory Bothacker-Mutant | -7/Garrison Botlord-Mutant | -7/Factory Botlord-Mutant | -7/Garrison Botlord-Mutant | -6/Factory Botlord-Mutant | -6/Garrison Botlord-Mutant | -5/Factory Botlord-Mutant | -5/Waste Bothacker-Mutant | -5/Factory Botlord-Mutant | -5/Garrison Botlord-Mutant | -4/Factory Botlord-Mutant | -4/Waste Botlord-Mutant | -4/Factory Botlord-Mutant | -4/Garrison Commander-Mutant | -3/Research Botlord-Mutant | -3/Garrison Botlord-Mutant | -3/Research Botlord-Mutant | -3/Garrison Botlord-Mutant | -3/Research Botlord-Mutant | -3/Garrison Botlord-Mutant | -2/Research Botlord-Mutant | -2/Garrison Botlord-Mutant | -1/Access Botlord-Mutant | -1/Command Resources | -11 -10 -10 -10 -9 -8 -8 -8 -8 -7 -7 -7 -7 -6 -6 -5 -5 -5 -5 -4 -4 -4 -4 -3 -3 -3 -3 -3 -3 -2 -2 -1 -1 ----------- Run | Yrd Mat Min Exi Min Mat Gar Mat Gar Fac Gar Fac Gar Fac Gar Fac Was Fac Gar Fac Was Fac Gar Res Gar Res Gar Res Gar Res Gar Acc Com Matter Collected 15173 | 319 352 . 112 35 147 834 379 888 767 16 190 613 90 405 270 40 587 490 466 63 268 572 190 995 1778 653 275 502 115 1275 380 1107 Remotely . | . . . . . . . . . . . . . . . . . . . . . . . . . . . . . . . . . Salvage Created 21038 | 167 501 . . 26 271 760 53 574 987 16 . 579 124 670 114 274 386 522 283 425 425 1827 276 1406 2081 1362 277 1608 235 2231 570 2008 Parts 972 | 12 27 . . 6 18 42 4 43 42 . . 35 6 32 1 5 13 39 12 9 17 60 23 43 93 40 15 93 20 90 27 105 Haulers Intercepted 5 | . 2 . . . 1 . . . . . . . . . . . 1 . . . 1 . . . . . . . . . . . Recyclers Shooed 7 | . . . . . . . . . 2 . . . . . . . . . . . . . 1 . 4 . . . . . . . Parts Field Recycled . | . . . . . . . . . . . . . . . . . . . . . . . . . . . . . . . . . Retrieved Matter . | . . . . . . . . . . . . . . . . . . . . . . . . . . . . . . . . . Parts Self-Destructed . | . . . . . . . . . . . . . . . . . . . . . . . . . . . . . . . . . Prevented . | . . . . . . . . . . . . . . . . . . . . . . . . . . . . . . . . . Parts Restored . | . . . . . . . . . . . . . . . . . . . . . . . . . . . . . . . . . Kills | -11 -10 -10 -10 -9 -8 -8 -8 -8 -7 -7 -7 -7 -6 -6 -5 -5 -5 -5 -4 -4 -4 -4 -3 -3 -3 -3 -3 -3 -2 -2 -1 -1 ------- Run | Yrd Mat Min Exi Min Mat Gar Mat Gar Fac Gar Fac Gar Fac Gar Fac Was Fac Gar Fac Was Fac Gar Res Gar Res Gar Res Gar Res Gar Acc Com Combat Hostiles Destroyed 342 | . 10 . . 3 4 29 1 21 25 . . 17 2 9 . 1 6 27 4 2 1 21 3 21 24 17 3 24 7 29 7 24 Melee 2 | . . . . . . . . . 1 . . . . . . . . . . . . . . . 1 . . . . . . . Guns 9 | . 2 . . . . . . 1 . . . 2 . . . . . . . . . . . . 2 . . . . . 2 . Cannons 206 | . 6 . . . . 11 1 14 9 . . 9 2 6 . 1 3 6 3 . 1 13 2 14 16 12 3 21 7 19 5 22 AOE 86 | . 2 . . 3 4 18 . 6 15 . . 5 . 2 . . 3 21 . . . . . 6 1 . . . . . . . Classes Destroyed 19 | 3 4 . . . 2 1 . 2 3 . . 1 . 1 . 1 . . . . . . . . . . . . . . . 1 Worker 17 | 1 . . . . 1 . . . 4 . . . . . . . 1 . . . 1 . . . 5 . . . . . . 4 Builder 10 | . . . . . 1 . . . . . . . . . . . . . 1 . 1 . 5 . 1 . . . . . 1 . Tunneler 6 | 4 . . . 1 . . . . . . . . . . . . 1 . . . . . . . . . . . . . . . Hauler 5 | . 2 . . . 1 . . . . . . . . . . . 1 . . . 1 . . . . . . . . . . . Recycler 7 | 1 . . . . . . . . 1 . . . . . 1 . . . . . 1 . . . 3 . . . . . . . Watcher 7 | . 2 . . . . . . . . . . . . . . . . . . . . . . 1 1 . 1 . . . 2 . Swarmer 92 | . 3 . . 3 . 7 . 10 8 . . 6 . 2 . . . 17 . . . . 1 1 1 3 . 8 7 8 . 7 Cutter 10 | . . . . . . . . . . . . 2 . . . . . 4 . . . . . 4 . . . . . . . . Grunt 97 | . 7 . . . 3 15 1 2 9 . . . 2 1 . . 2 5 1 . . 12 2 13 1 10 1 3 . 7 . . Brawler 9 | . . . . . . . . . 3 . . 2 . . . . . . . . . 3 . . . . . . . 1 . . Duelist 5 | . . . . . . . . . 1 . . 1 . 1 . . . . . . . 2 . . . . . . . . . . Protector 1 | . . . . . . . . . 1 . . . . . . . . . . . . . . . . . . . . . . . Sentry 34 | . . . . . 1 4 . 1 2 . . 3 . 2 . . 1 . . . 2 3 . 3 . 1 . 1 . 5 1 4 Specialist 11 | . . . . . . . . 4 . . . . . . . . . . . . . . . 3 4 . . . . . . . Hunter 23 | . . . . . . . . 1 . . . . . 3 . . . . 2 . . 3 . . 5 3 . 5 . . . 1 Programmer 65 | . . . . . . 3 . 4 1 . . 3 . . . . 3 2 1 . . . . . 12 1 2 7 . 9 6 11 Behemoth 6 | . . . . . . . . . . . . . . 1 . . . 1 . . . . . . 2 . . 1 . 1 . . Compactor 3 | . . . . . . . . . . . . . . . . 1 . . . 2 . . . . . . . . . . . . Combat Programmer 1 | . . . . . . . . . . . . . . . . . . . . . . . . . . . . . . . . 1 Striker 1 | . . . . . . . . . . . . . . . . . . . . . . . . . . . . . . . . 1 Infiltrator 1 | . . . . . . . . . . . . . . . . . . . . . . . . . . . . 1 . . . . Best Kill Streak 12 | 3 3 . . 3 5 6 1 6 4 . . 3 2 2 1 1 4 8 1 1 2 6 3 7 12 6 2 12 4 4 3 4 Combat Bots Only 12 | . 3 . . 3 3 6 1 6 4 . . 3 2 2 . 1 2 8 1 1 1 6 2 7 4 6 2 12 4 4 3 4 Max Kills in Single Turn 5 | 1 2 . . 2 4 3 1 4 4 . . 3 1 2 1 1 2 5 1 1 1 1 1 2 2 1 1 1 1 1 1 1 Gunslinging . | . . . . . . . . . . . . . . . . . . . . . . . . . . . . . . . . . Exploded 5 | . 2 . . 2 3 3 . 4 3 . . 3 . 1 . . 1 5 . . . . . 2 1 . . . . . . . Melee 1 | . . . . . . . . . 1 . . . . . . . . . . . . . . . 1 . . . . . . . Uniques/NPCs Destroyed . | . . . . . . . . . . . . . . . . . . . . . . . . . . . . . . . . . Combat | -11 -10 -10 -10 -9 -8 -8 -8 -8 -7 -7 -7 -7 -6 -6 -5 -5 -5 -5 -4 -4 -4 -4 -3 -3 -3 -3 -3 -3 -2 -2 -1 -1 -------- Run | Yrd Mat Min Exi Min Mat Gar Mat Gar Fac Gar Fac Gar Fac Gar Fac Was Fac Gar Fac Was Fac Gar Res Gar Res Gar Res Gar Res Gar Acc Com Hostile Shots Fired 1966 | . 33 . . . 4 78 5 100 92 . 9 149 3 104 3 . 79 83 18 . 2 34 10 90 456 85 18 87 46 127 23 228 Missed 699 | . 12 . . . 2 27 3 37 33 . 7 61 1 36 . . 21 26 8 . . 18 4 28 139 30 7 29 15 30 10 115 Hits 1267 | . 21 . . . 2 51 2 63 59 . 2 88 2 68 3 . 58 57 10 . 2 16 6 62 317 55 11 58 31 97 13 113 Melee 27 | . . . . . . . . 1 . . . 7 2 1 . . . 4 . . . . . 12 . . . . . . . . Projectile 1240 | . 21 . . . 2 51 2 62 59 . 2 81 . 67 3 . 58 53 10 . 2 16 6 50 317 55 11 58 31 97 13 113 AOE 2 | . . . . . . . . . . . . . . . . . . . 1 . . . . . . . . . . . . 1 Critical Strikes 82 | . . . . . . 3 . 2 3 . . 5 . 2 . . 2 2 1 . . 2 . 5 28 7 1 2 . 7 2 8 Actively Blocked 34 | . . . . . . . . . . . . . . . . . . 2 . . . . . 5 7 1 . 2 . 7 2 8 Part Disruptions 4 | . . . . . . . . . . . . . . . . . . . . . . . . . . . . . . 1 . 3 Damage Taken 21779 | . 234 . . 19 37 701 43 744 953 . . 701 75 1013 75 28 825 1025 244 . 51 333 244 1142 4017 949 264 1265 699 2495 465 3138 Core 1684 | . 12 . . . . 42 . 149 87 . . 32 . 90 . . 203 136 29 . . 21 34 138 133 38 . 46 . 194 58 242 Absorbed by Shields 2001 | . . . . . . 194 . 249 226 . 11 238 . 25 . . . 112 . . . 12 . 191 115 151 . . . 332 . 145 Reduced by Siege Mode 716 | . . . . . . . . . . . . . . . . . . . . . . . . . 292 48 . 150 35 191 . . Redirected to Shielding 237 | . . . . . . . . 6 87 . . . . . . . . 144 . . . . . . . . . . . . . . Ignored by Resistances 3137 | . . . . . . . . . . . . . . . . . 279 108 . . . . . 62 2688 . . . . . . . Regen/Repaired (Parts) 2262 | . . . . . . . . 21 44 108 . 107 . 414 . . . 329 72 100 24 50 . . 993 . . . . . . . Core Remaining (%) 83 | 100 . . . 95 . . . 65 . . . 83 . 89 . . . 66 . . . 95 . . . . . 70 . 86 . 81 Volleys Fired 2365 | 13 40 . . 3 6 67 31 101 87 9 4 72 11 62 14 36 77 74 83 25 42 149 39 173 262 124 44 121 56 161 104 275 Largest 2 | 2 2 . . 1 2 2 2 2 2 2 1 2 2 2 1 1 2 1 1 1 1 1 1 1 2 1 1 2 1 1 1 2 Hottest 214 | 70 120 . . 30 120 115 130 119 119 50 5 110 81 60 94 30 124 113 113 113 113 120 120 120 120 120 120 214 120 120 120 120 Shots Fired 2592 | 26 68 . . 4 11 109 35 137 107 11 4 112 16 92 14 36 78 74 84 25 43 151 39 173 265 124 40 120 57 160 104 273 Gun 117 | 26 30 . . . 2 . 3 5 4 . . 6 . . . . . . . . . . . . 20 . . . . . 21 . Cannon 1855 | . 32 . . 1 3 84 5 113 52 9 . 98 12 77 3 30 29 44 65 25 33 108 34 106 185 102 32 102 47 121 72 231 Launcher 92 | . 1 . . 3 6 25 . 4 12 . . 2 . 2 . . 9 18 . . . . . 10 . . . . . . . . Special 528 | . 5 . . . . . 27 15 39 2 4 6 4 13 11 6 40 12 19 . 10 43 5 57 60 22 8 18 10 39 11 42 Kinetic 233 | 13 28 . . 1 3 37 1 35 20 . . . 5 . . . . . . . . . . . 64 . . . . . . 26 Thermal 1489 | 13 39 . . . 2 47 4 78 36 11 . 104 7 77 2 30 29 38 55 25 33 29 29 102 87 60 32 84 47 78 88 223 Explosive 76 | . 1 . . 3 3 23 . 4 5 . . 2 . 2 . . 5 18 . . . . . 10 . . . . . . . . Electromagnetic 299 | . . . . . 3 2 3 5 7 . . . . . 1 . 5 6 10 . . 79 5 4 54 42 . 18 . 43 6 6 Robot Hit Streak 24 | 7 15 . . . 9 9 14 17 9 3 5 15 4 9 8 9 11 9 12 8 16 12 5 22 24 14 9 13 7 20 9 19 Robot Miss Streak 8 | 1 7 . . . 1 3 2 3 8 1 . 4 1 4 1 2 3 4 3 2 3 3 3 2 5 5 2 4 2 3 6 4 Penetration Max 1 | . . . . . . 1 . . . . . . . . . . . . . . . . . . . . . . . . . . Secondary Targets . | . . . . . . . . . . . . . . . . . . . . . . . . . . . . . . . . . Capacitor 923 | . . . . . . . . . . . . . . . . . . . 51 25 31 94 30 91 43 91 29 100 47 81 53 157 Shots Hit Robots 1578 | 17 37 . . . 5 55 26 53 69 2 4 57 11 61 12 28 47 29 32 19 27 106 24 124 188 83 20 84 31 131 42 154 Core Hits 671 | 7 21 . . 3 18 55 1 33 52 1 . 26 2 25 1 5 16 39 9 1 10 35 9 44 100 22 6 29 7 29 13 52 Critical Kills 13 | . . . . . . . . . . . . . . 2 . . . . . 2 . . . 1 2 1 . . . 4 . 1 Critical Parts Destroyed . | . . . . . . . . . . . . . . . . . . . . . . . . . . . . . . . . . Critical Strikes 25 | 2 . . . . . 4 . 2 1 . . . . 2 . . . . . 2 . . . 1 3 1 . 1 . 5 . 1 Burn 2 | 2 . . . . . . . . . . . . . . . . . . . . . . . . . . . . . . . . Meltdown 13 | . . . . . . . . . . . . . . 2 . . . . . 2 . . . 1 2 1 . . . 4 . 1 Blast 6 | . . . . . . 4 . 2 . . . . . . . . . . . . . . . . . . . . . . . . Corrupt 3 | . . . . . . . . . . . . . . . . . . . . . . . . . 1 . . 1 . 1 . . Sever 1 | . . . . . . . . . 1 . . . . . . . . . . . . . . . . . . . . . . . Melee Attacks 33 | . . . . . . 17 . . 16 . . . . . . . . . . . . . . . . . . . . . . . Impact . | . . . . . . . . . . . . . . . . . . . . . . . . . . . . . . . . . Slashing 33 | . . . . . . 17 . . 16 . . . . . . . . . . . . . . . . . . . . . . . Piercing . | . . . . . . . . . . . . . . . . . . . . . . . . . . . . . . . . . Sneak Attacks 2 | . . . . . . . . . 2 . . . . . . . . . . . . . . . . . . . . . . . Combat Hostiles . | . . . . . . . . . . . . . . . . . . . . . . . . . . . . . . . . . Follow-up Attacks . | . . . . . . . . . . . . . . . . . . . . . . . . . . . . . . . . . Damage Inflicted 53270 | 213 726 . . 92 435 2965 99 1528 2927 53 . 1994 176 1681 72 701 1118 3131 768 827 939 2745 960 3962 4960 2699 605 3249 887 5136 1648 5974 Guns 1729 | 213 203 . . . 66 . 20 115 45 . . 98 . . . . . . . . . . . . 484 . . . . . 485 . Cannons 41274 | . 442 . . . 30 1366 79 1057 661 53 . 1343 176 1476 72 701 540 677 768 827 939 2745 960 2848 4236 2699 605 3249 887 5136 1044 5658 Explosions 9693 | . 81 . . 84 339 1599 . 353 2078 . . 553 . 205 . . 561 2454 . . . . . 1114 153 . . . . . 119 . Melee 124 | . . . . . . . . . 124 . . . . . . . . . . . . . . . . . . . . . . . Ramming 117 | . . . . 8 . . . 3 19 . . . . . . . . . . . . . . . 87 . . . . . . . Kinetic 4197 | 100 191 . . . 30 819 29 540 320 . . . 15 . . . . . . . . . . . 1858 . . . . . . 295 Thermal 32272 | 113 454 . . . 72 547 50 517 990 53 . 1441 161 1476 26 701 514 592 596 827 939 551 826 2739 1734 1763 605 2500 887 3690 1458 5450 Explosive 8081 | . 81 . . 84 184 1589 . 353 1034 . . 553 . 205 . . 430 2454 . . . . . 1114 . . . . . . . . Electromagnetic 8479 | . . . . . 149 10 20 115 440 . . . . . 46 . 174 85 172 . . 2194 134 109 1281 936 . 749 . 1446 190 229 Impact . | . . . . . . . . . . . . . . . . . . . . . . . . . . . . . . . . . Slashing 124 | . . . . . . . . . 124 . . . . . . . . . . . . . . . . . . . . . . . Piercing . | . . . . . . . . . . . . . . . . . . . . . . . . . . . . . . . . . Highest Corruption 34 | . . . . 7 . 2 . 1 . . . . . . . . 3 1 5 4 4 4 . . 30 30 31 34 5 26 2 13 Average Corruption 13 | . . . . 6 . 1 . 1 . . . . . . . . 1 1 4 4 4 4 . . 21 30 30 33 4 14 2 7 Corruption Purged 13 | . . . . . . 2 . . . . . . . . . . 3 . 1 . . . . . . . . . . . . 7 Corruption Blocked 3 | . . . . . . . . . . . . 3 . . . . . . . . . . . . . . . . . . . . Effects 431 | . . . . 1 . 3 . 12 . . . . . . . . 4 6 13 11 4 14 . . 42 72 33 69 12 64 5 66 Message Errors 93 | . . . . 1 . 1 . 2 . . . . . . . . . 2 3 4 2 5 . . 4 16 6 14 2 15 2 14 Matter Fused 99 | . . . . . . 2 . 2 . . . . . . . . 1 1 3 2 . 3 . . 11 14 12 12 1 14 1 20 Heat Flow Errors 34 | . . . . . . . . . . . . . . . . . 1 . . 2 . . . . 2 6 1 10 1 5 . 6 Energy Discharges 55 | . . . . . . . . 3 . . . . . . . . 1 1 3 2 . 1 . . 6 12 2 9 3 7 . 5 Parts Rejected 4 | . . . . . . . . . . . . . . . . . . . 1 . . . . . 1 1 1 . . . . . Parts Fused 9 | . . . . . . . . 2 . . . . . . . . . . . . . . . . 2 . 1 2 . . 1 1 Data Loss (minor) 56 | . . . . . . . . 1 . . . . . . . . . 2 2 . 1 1 . . 6 9 1 11 . 12 1 9 Data Loss (major) 22 | . . . . . . . . 1 . . . . . . . . 1 . . 1 . 2 . . 1 4 2 1 4 2 . 3 Misfires 16 | . . . . . . . . . . . . . . . . . . . 1 . 1 2 . . 1 4 . 3 1 2 . 1 Alerts 9 | . . . . . . . . . . . . . . . . . . . . . . . . . 3 2 . 2 . 1 . 1 Misdirections 7 | . . . . . . . . . . . . . . . . . . . . . . . . . . . 3 . . 3 . 1 Weapon Failures 27 | . . . . . . . . 1 . . . . . . . . . . . . . . . . 5 4 4 5 . 3 . 5 Overload Shots 3 | . . . . . . . . . 2 . . . . . . . 1 . . . . . . . . . . . . . . . Overflow Damage 1414 | . . . . . . 56 . 32 207 . . 11 . 17 . . 43 119 31 . 17 . 43 122 36 65 45 115 90 131 96 138 Projectiles 1000 | . . . . . . 26 . 32 . . . 11 . . . . 40 . 31 . 17 . 43 94 36 65 45 115 90 131 86 138 Explosions 414 | . . . . . . 30 . . 207 . . . . 17 . . 3 119 . . . . . 28 . . . . . . 10 . Melee . | . . . . . . . . . . . . . . . . . . . . . . . . . . . . . . . . . Knockbacks 60 | . . . . . . 9 . 10 7 . . . 1 . . . . . . . . . . . 30 . . . . . . 3 Impact 1 | . . . . . . . . . . . . . . . . . . . . . . . . . 1 . . . . . . . Kinetic 53 | . . . . . . 6 . 10 7 . . . 1 . . . . . . . . . . . 26 . . . . . . 3 Secondary 6 | . . . . . . 3 . . . . . . . . . . . . . . . . . . 3 . . . . . . . Self-Inflicted Damage 559 | . . . . . . 140 . . 18 . . 32 . . . . . 122 . . . . . 89 91 . . . . . 67 . Shots 16 | . . . . . . 8 . . 1 . . 1 . . . . . 2 . . . . . 2 1 . . . . . 1 . Rammed 16 | . . . . 1 . . . 2 2 . . . . . . . . . . . . . . . 11 . . . . . . . Targets Rammed 18 | . . . . 2 . . . 2 2 . . . . . . . . . . . . . . . 12 . . . . . . . Kicked . | . . . . . . . . . . . . . . . . . . . . . . . . . . . . . . . . . Crushed 2 | . . . . 1 . . . . . . . . . . . . . . . . . . . . 1 . . . . . . . Highest Temperature 472 | 45 283 . . 18 132 82 102 285 235 . 406 187 15 332 52 2 161 472 379 278 345 320 384 391 377 401 130 459 355 427 328 366 Average Temperature 106 | 18 85 . . 10 47 18 44 45 69 . 193 54 8 101 24 2 47 81 123 128 121 116 158 96 130 126 51 199 161 132 97 128 Received Heat Transfer 2557 | . 111 . . . 18 233 18 125 266 . . 181 . 525 9 . 72 93 . . 9 34 21 161 78 166 79 36 . 259 9 54 Effects 41 | . . . . . . . . 1 . . 4 . . . . . . . 6 2 1 3 2 1 11 1 . . 2 1 2 4 Shutdowns 10 | . . . . . . . . . . . 1 . . . . . . . . . 1 . . 1 4 1 . . . 1 . 1 Energy Bleed 9 | . . . . . . . . 1 . . . . . . . . . . . . . 2 1 . 2 . . . 1 . 2 . Interference 15 | . . . . . . . . . . . 3 . . . . . . . 4 2 . 1 . . 2 . . . 1 . . 2 Matter Decay 2 | . . . . . . . . . . . . . . . . . . . 1 . . . . . 1 . . . . . . . Short Circuit 3 | . . . . . . . . . . . . . . . . . . . . . . . 1 . 2 . . . . . . . Damage (minor) 2 | . . . . . . . . . . . . . . . . . . . 1 . . . . . . . . . . . . 1 Siege Activations 33 | . . . . . . . . . . . . . . . . . . . . . . . . . 10 5 2 6 1 9 . . Total Turns 338 | . . . . . . . . . . . . . . . . . . . . . . . . . 149 49 3 54 9 74 . . Longest Duration 58 | . . . . . . . . . . . . . . . . . . . . . . . . . 58 19 2 23 9 17 . . Martial Activations . | . . . . . . . . . . . . . . . . . . . . . . . . . . . . . . . . . Shielding Activations . | . . . . . . . . . . . . . . . . . . . . . . . . . . . . . . . . . Robots Disrupted . | . . . . . . . . . . . . . . . . . . . . . . . . . . . . . . . . . Combat Hostiles . | . . . . . . . . . . . . . . . . . . . . . . . . . . . . . . . . . Robots Corrupted 29 | . . . . . . . . . . . . . . . . . . . 1 . . 8 1 . 2 5 . 3 . 8 . 1 Combat Hostiles 26 | . . . . . . . . . . . . . . . . . . . 1 . . 8 1 . 2 4 . 3 . 6 . 1 Parts Fried 63 | . . . . . . . . 2 . . . . . . . . . 1 1 . . 16 1 1 13 8 1 2 . 12 . 5 Impact Corruptions . | . . . . . . . . . . . . . . . . . . . . . . . . . . . . . . . . . Robots Melted 14 | . . . . . . . . . . . . 1 . 2 . . . . . 2 . . . 1 2 1 . . . 4 . 1 Combat Hostiles 13 | . . . . . . . . . . . . 1 . 1 . . . . . 2 . . . 1 2 1 . . . 4 . 1 Parts Melted 68 | . . . . . . 1 . 1 3 . . 8 . 4 . . 1 . 4 2 2 1 . 6 6 8 . . 2 12 1 6 Heat Transferred 29251 | 481 814 . . . 200 811 74 703 1005 74 . 2038 222 1998 37 962 666 423 555 777 888 518 703 2140 1357 1628 481 2072 777 2291 1247 3309 Parts Sabotaged 3 | . . . . . . . . . . . . . . 3 . . . . . . . . . . . . . . . . . . Parts Stolen . | . . . . . . . . . . . . . . . . . . . . . . . . . . . . . . . . . Parts Stripped . | . . . . . . . . . . . . . . . . . . . . . . . . . . . . . . . . . Power Chain Reactions 6 | . . . . . 3 . . . 1 . . . . . . . . . . . . . . . 1 . . . . . 1 . Alert | -11 -10 -10 -10 -9 -8 -8 -8 -8 -7 -7 -7 -7 -6 -6 -5 -5 -5 -5 -4 -4 -4 -4 -3 -3 -3 -3 -3 -3 -2 -2 -1 -1 ------- Run | Yrd Mat Min Exi Min Mat Gar Mat Gar Fac Gar Fac Gar Fac Gar Fac Was Fac Gar Fac Was Fac Gar Res Gar Res Gar Res Gar Res Gar Acc Com Maximum Alert Level 4 | . . . . . . 4 3 4 4 3 2 4 3 3 2 . . 4 2 . . 3 2 3 2 2 2 4 3 4 2 3 Low Security (%) 31 | 100 100 100 . 100 100 8 . 4 . . . . . . . 100 100 18 . 100 100 8 . 18 63 11 79 5 . . 97 27 Level 1 8 | . . . . . . 7 21 13 . . 15 3 . . . . . 11 . . . 6 . 22 29 22 17 12 . . 1 16 Level 2 24 | . . . . . . 23 57 16 29 44 84 23 89 53 100 . . 23 100 . . 18 99 53 6 65 3 5 29 14 . 15 Level 3 26 | . . . . . . 22 19 46 38 55 . 42 10 46 . . . 9 . . . 66 . 5 . . . 69 70 76 . 40 Level 4 8 | . . . . . . 37 . 19 31 . . 30 . . . . . 37 . . . . . . . . . 6 . 8 . . Level 5 . | . . . . . . . . . . . . . . . . . . . . . . . . . . . . . . . . . High Security . | . . . . . . . . . . . . . . . . . . . . . . . . . . . . . . . . . Max Security . | . . . . . . . . . . . . . . . . . . . . . . . . . . . . . . . . . Peak Influence 1508 | 10 153 25 . 73 133 1508 741 1393 1405 922 483 1347 707 1055 565 190 187 1266 664 171 187 978 680 769 483 699 457 1201 1078 1197 480 804 Initial 741 | . . 25 . . . 81 735 122 730 441 483 294 707 420 553 190 . 101 664 159 . 109 549 469 432 167 393 171 675 741 477 32 Average 515 | 1 42 2 . 19 14 838 492 788 938 707 431 913 660 737 472 93 40 726 538 74 110 657 553 444 124 449 194 766 777 846 86 441 Influence Increases 20309 | 30 299 . . 89 199 1497 321 1401 1267 481 118 1203 44 735 232 10 406 1265 230 72 347 1139 637 1073 911 702 452 1200 743 1035 617 1554 Destroy 0b10 Robot/C 8130 | . 200 . . 60 80 700 140 560 620 . 80 580 40 240 80 . 200 600 80 . 100 500 225 375 420 300 165 555 270 480 120 360 Destroy 0b10 Robot/NC 386 | 30 20 . . 5 15 . 15 . 45 . . . . 10 25 . 35 . 5 . 25 . 24 4 40 4 12 . 32 . 16 24 Destroy Leader 1100 | . 48 . . 10 22 20 22 40 114 . 10 50 . 20 24 . 64 40 20 . 14 30 40 16 106 40 42 64 56 48 44 96 Allied During Kill 2412 | . . . . . . 50 77 79 114 . 28 102 4 77 59 . 22 138 16 . 54 286 248 116 121 71 175 260 136 89 20 70 Trap Triggered on 0b10 50 | . . . . . . . . . 20 . . . . . . . . 30 . . . . . . . . . . . . . . Successful Hack 408 | . 17 . . . 7 7 20 12 40 21 . . . . 17 . 16 28 12 . 72 . . 11 . . 22 . . 11 57 38 Disable Machine 1008 | . . . . . 30 30 30 75 180 . . 135 . 30 15 . . 30 . . 30 15 24 48 24 24 . 12 36 60 72 108 Anti-Garrison Action 3296 | . . . . . . 550 . 450 . 450 . 300 . 300 . . . 150 . . . 226 . 265 . 189 . 227 . 189 . . Destroy Structure 2571 | . 14 . . 14 45 95 2 185 119 10 . 21 . 43 12 10 54 234 52 72 52 82 76 190 140 14 36 82 213 38 168 498 Partial Spotted 96 | . . . . . . . . . . . . . . . . . . . . . . . . . 24 . . . . 12 36 24 Lose Combat Pursuer 852 | . . . . . . 45 15 . 15 . . 15 . 15 . . 15 15 45 . . . . 48 36 60 . . . 108 84 336 Influence Decreases 19473 | 30 233 66 . 89 74 114 1641 196 2029 190 619 277 790 281 742 555 261 144 1040 528 190 318 989 930 1457 226 923 227 956 1227 1363 768 Entered New Map 7464 | . . 41 . . . 44 773 66 663 190 439 127 640 181 502 355 . 44 602 297 . 48 429 157 337 56 306 57 526 247 319 18 Time Decay 4772 | 30 233 25 . 89 64 . 238 . 556 . 180 . 130 . 160 200 209 . 278 191 150 . 120 . 421 . 262 . 310 . 346 580 Lost Part 390 | . . . . . 10 20 . . 20 . . 10 . 10 . . . 20 10 . . 10 . 50 50 . . 10 20 60 10 80 Lost Ally 2835 | . . . . . . 50 180 130 90 . . 140 20 90 80 . 52 80 150 40 40 260 140 173 150 170 80 160 100 220 150 90 Purge Threat 4012 | . . . . . . . 450 . 700 . . . . . . . . . . . . . 300 550 499 . 275 . . 700 538 . Squads Dispatched 67 | . . . . . 2 . 4 . 11 . 3 . . . 1 . 5 . 3 . 2 . 3 . 11 . 3 . 5 . 6 8 Investigation 7 | . . . . . 1 . 1 . 3 . . . . . . . . . . . 1 . 1 . . . . . . . . . Extermination 25 | . . . . . . . . . 3 . 1 . . . . . 2 . 1 . . . . . 4 . 1 . 2 . 3 8 Reinforcement 21 | . . . . . . . 1 . 3 . . . . . . . 3 . 1 . 1 . 1 . 6 . 1 . 1 . 3 . Assault 6 | . . . . . . . . . 2 . . . . . 1 . . . 1 . . . 1 . . . . . 1 . . . Garrison 8 | . . . . . 1 . 2 . . . 2 . . . . . . . . . . . . . 1 . 1 . 1 . . . Intercept . | . . . . . . . . . . . . . . . . . . . . . . . . . . . . . . . . . Searches Triggered . | . . . . . . . . . . . . . . . . . . . . . . . . . . . . . . . . . Unchained Authorized 3 | . . . . . . . . . . . . . . . . . . . . . . . . . 1 . . . 1 . 1 . Construction Impeded 5 | . . . . . . . . . 2 . . . . . . . 1 . . . . . 1 . . . . . . . 1 . Haulers Reinforced 5 | . . . . . . . . . . . . . . . . . . . 1 . 1 . . . 2 . . . 1 . . . Active Scanning Responses . | . . . . . . . . . . . . . . . . . . . . . . . . . . . . . . . . . Cargo Convoy Interrupts 2 | . . . . . . . . . 1 . . . . . . . . . . . . . . . 1 . . . . . . . Alert ID Control Effect 104 | . . . . . . . . . 1 . . 1 1 9 2 . 3 . 5 . . 5 4 8 24 1 4 . 4 10 2 20 Stealth | -11 -10 -10 -10 -9 -8 -8 -8 -8 -7 -7 -7 -7 -6 -6 -5 -5 -5 -5 -4 -4 -4 -4 -3 -3 -3 -3 -3 -3 -2 -2 -1 -1 --------- Run | Yrd Mat Min Exi Min Mat Gar Mat Gar Fac Gar Fac Gar Fac Gar Fac Was Fac Gar Fac Was Fac Gar Res Gar Res Gar Res Gar Res Gar Acc Com Distress Signals 25 | . . . . . 1 . 1 . 1 . . . . . . . 1 . 1 . . . 2 1 2 . 1 . 1 . 5 8 Communications Jammed 350 | . . . . . . . . . 2 . . . . . . . 2 . 12 . 1 . 1 . 169 . . . 163 . . . Distress Signals 346 | . . . . . . . . . . . . . . . . . 2 . 12 . 1 . . . 168 . . . 163 . . . Times Spotted 771 | . 18 . . . 8 31 22 31 40 . 4 25 2 34 4 5 22 32 16 5 5 37 19 44 85 32 15 37 30 60 21 87 Peak Tracking Total 13 | . 3 . . . 4 4 4 4 5 . 2 3 2 4 2 3 4 9 6 3 2 3 7 7 8 6 3 5 5 11 5 13 Tactical Retreats 38 | . . . . . . 1 1 . 1 . . 1 . 1 . . 1 1 2 . . . . 3 2 4 . . . 4 4 12 Traps | -11 -10 -10 -10 -9 -8 -8 -8 -8 -7 -7 -7 -7 -6 -6 -5 -5 -5 -5 -4 -4 -4 -4 -3 -3 -3 -3 -3 -3 -2 -2 -1 -1 ------- Run | Yrd Mat Min Exi Min Mat Gar Mat Gar Fac Gar Fac Gar Fac Gar Fac Was Fac Gar Fac Was Fac Gar Res Gar Res Gar Res Gar Res Gar Acc Com Traps Triggered 60 | . . . . . . 4 . 13 2 . . 4 . 3 2 . 1 9 1 . . 5 1 4 1 . . 2 2 4 1 1 Indirectly 1 | . . . . . . . . . . . . . . . . . 1 . . . . . . . . . . . . . . . Trap Hack Attempts . | . . . . . . . . . . . . . . . . . . . . . . . . . . . . . . . . . Triggered . | . . . . . . . . . . . . . . . . . . . . . . . . . . . . . . . . . Disarmed . | . . . . . . . . . . . . . . . . . . . . . . . . . . . . . . . . . Reprogrammed . | . . . . . . . . . . . . . . . . . . . . . . . . . . . . . . . . . Reused 5 | . . . . . . . . . 2 . . . . . . . . 3 . . . . . . . . . . . . . . Traps Extracted . | . . . . . . . . . . . . . . . . . . . . . . . . . . . . . . . . . Installed 6 | . . . . . . . . . 2 . . . . . . . . 4 . . . . . . . . . . . . . . Triggered 5 | . . . . . . . . . 2 . . . . . . . . 3 . . . . . . . . . . . . . . Most Traps Carried 4 | . . . . . . . . 4 4 2 2 4 4 4 4 4 4 4 . . . . . . . . . . . . . . Machines | -11 -10 -10 -10 -9 -8 -8 -8 -8 -7 -7 -7 -7 -6 -6 -5 -5 -5 -5 -4 -4 -4 -4 -3 -3 -3 -3 -3 -3 -2 -2 -1 -1 ---------- Run | Yrd Mat Min Exi Min Mat Gar Mat Gar Fac Gar Fac Gar Fac Gar Fac Was Fac Gar Fac Was Fac Gar Res Gar Res Gar Res Gar Res Gar Acc Com Machines Disabled 123 | . . . . . 2 7 2 10 12 3 . 13 . 7 1 . . 5 . . 2 7 2 10 2 6 . 6 3 8 6 9 Max in Single Turn 6 | . . . . . 2 1 1 1 6 1 . 1 . 1 . . . 1 . . 1 1 1 1 . 1 . 1 . 1 1 1 Garrison Access 9 | . . . . . . . . . 1 . . . . . 1 . 2 . 1 . . . . . 1 . . . . . 3 . Garrison Relay 42 | . . . . . . 4 . 5 . 2 . 4 . 4 . . . 3 . . . 5 . 5 . 3 . 4 . 3 . . Phase Generator 2 | . . . . . . 1 . . . 1 . . . . . . . . . . . . . . . . . . . . . . Machines Repaired . | . . . . . . . . . . . . . . . . . . . . . . . . . . . . . . . . . Machines Dismantled 19 | . . . . . . 1 . . . 2 . . . 1 . . . . . . 2 1 . 1 . 1 . 1 . 4 2 3 Machines Sabotaged . | . . . . . . . . . . . . . . . . . . . . . . . . . . . . . . . . . Overloaded Fab Kills . | . . . . . . . . . . . . . . . . . . . . . . . . . . . . . . . . . Hacking | -11 -10 -10 -10 -9 -8 -8 -8 -8 -7 -7 -7 -7 -6 -6 -5 -5 -5 -5 -4 -4 -4 -4 -3 -3 -3 -3 -3 -3 -2 -2 -1 -1 --------- Run | Yrd Mat Min Exi Min Mat Gar Mat Gar Fac Gar Fac Gar Fac Gar Fac Was Fac Gar Fac Was Fac Gar Res Gar Res Gar Res Gar Res Gar Acc Com Machines Accessed 113 | . 6 . 2 1 1 4 4 3 12 2 3 3 1 2 4 . 5 2 2 . 4 2 5 2 5 2 4 3 3 2 16 8 Terminals 64 | . 6 . . . . 4 3 3 5 2 . 3 . 2 1 . 1 2 . . 1 2 2 2 1 2 . 3 . 2 9 8 Fabricators 5 | . . . . . . . . . 1 . . . . . 1 . . . . . . . 1 . . . . . . . 2 . Repair Stations 7 | . . . . . . . . . 1 . 1 . . . 1 . . . 1 . 1 . . . 1 . 1 . . . . . Recycling Units 3 | . . . . . . . . . . . 1 . . . . . . . . . . . 1 . . . . . . . 1 . Scanalyzers 11 | . . . . . . . . . 3 . . . . . . . 1 . . . 1 . . . 1 . 2 . 2 . 1 . Garrison Access 20 | . . . . . 1 . 1 . 2 . 1 . 1 . 1 . 3 . 1 . 1 . 1 . 2 . 1 . 1 . 3 . Total Hacks 214 | . 19 . 2 1 2 6 17 4 31 2 5 4 1 3 6 . 12 3 3 . 9 2 10 2 8 2 7 5 6 4 23 15 Successful 110 | . 12 . 2 1 2 1 11 1 18 2 1 1 1 . 3 . 10 2 3 . 4 . 5 1 4 1 3 . 1 1 14 5 Failed 100 | . 6 . . . . 5 5 3 12 . 4 3 . 3 3 . 2 1 . . 5 2 5 1 4 1 3 5 5 3 9 10 Catastrophic 30 | . 1 . . . . 1 . . 3 . 2 . . 2 1 . 1 . . . 1 1 2 1 1 . . 3 3 1 4 2 Database Lockouts 4 | . 1 . . . . . 1 . 1 . . . . . . . . . . . . . . . . . 1 . . . . . Manual 95 | . 18 . 1 . 1 . 11 . 22 . 4 . . . 5 . 4 . 1 . 6 . 2 . 3 . 2 . 2 1 4 8 Terminals 127 | . 19 . . . . 6 15 4 15 2 . 4 . 3 2 . 4 3 . . 2 2 4 2 1 2 . 5 . 4 13 15 Fabricators 11 | . . . . . . . . . 4 . . . . . 2 . . . . . . . 3 . . . . . . . 2 . Repair Stations 9 | . . . . . . . . . 2 . 1 . . . 1 . . . 1 . 2 . . . 1 . 1 . . . . . Recycling Units 4 | . . . . . . . . . . . 2 . . . . . . . . . . . 1 . . . . . . . 1 . Scanalyzers 20 | . . . . . . . . . 6 . . . . . . . 2 . . . 2 . . . 2 . 4 . 3 . 1 . Garrison Access 40 | . . . . . 2 . 2 . 4 . 2 . 1 . 1 . 6 . 2 . 3 . 2 . 4 . 2 . 3 . 6 . Terminal Hacks 35 | . 3 . 2 1 . 1 5 1 2 2 . 1 . . . . 2 2 . . . . 2 1 . 1 . . . 1 5 3 Record 1 | . . . 1 . . . . . . . . . . . . . . . . . . . . . . . . . . . . . Robot Schematic 1 | . . . . . . . . . . . . . . . . . 1 . . . . . . . . . . . . . . . Robot Analysis 2 | . 1 . . . . . 1 . . . . . . . . . . . . . . . . . . . . . . . . . Prototype ID Bank 4 | . . . . . . . 2 . . . . . . . . . 1 . . . . . . . . . . . . . . 1 Open Door 5 | . . . . 1 . 1 . . . 1 . . . . . . . . . . . . . . . . . . . . 2 . Open DSF 1 | . . . . . . . . . 1 . . . . . . . . . . . . . . . . . . . . . . . Level Access Points 1 | . . . . . . . . . . . . . . . . . . . . . . . . . . . . . . . 1 . Emergency Access Points 4 | . . . . . . . . 1 . 1 . . . . . . . 1 . . . . . . . 1 . . . . . . Terminal Index 1 | . . . . . . . . . . . . . . . . . . . . . . . . . . . . . . . . 1 Unreport Threat 5 | . . . . . . . . . 1 . . . . . . . . . . . . . 2 . . . . . . . 2 . Locate Traps 3 | . . . . . . . 2 . . . . . . . . . . . . . . . . . . . . . . . . 1 Dispatch Records 1 | . 1 . . . . . . . . . . . . . . . . . . . . . . . . . . . . . . . Registered Components 1 | . 1 . . . . . . . . . . . . . . . . . . . . . . . . . . . . . . . Patrol Navigation 3 | . . . . . . . . . . . . . . . . . . 1 . . . . . 1 . . . . . 1 . . Security Stations 1 | . . . . . . . . . . . . 1 . . . . . . . . . . . . . . . . . . . . Proto ID Catalog 1 | . . . 1 . . . . . . . . . . . . . . . . . . . . . . . . . . . . . Fabricator Hacks 2 | . . . . . . . . . . . . . . . . . . . . . . . 2 . . . . . . . . . Load Schematic 1 | . . . . . . . . . . . . . . . . . . . . . . . 1 . . . . . . . . . Build 1 | . . . . . . . . . . . . . . . . . . . . . . . 1 . . . . . . . . . Repair Station Hacks . | . . . . . . . . . . . . . . . . . . . . . . . . . . . . . . . . . Recycling Unit Hacks . | . . . . . . . . . . . . . . . . . . . . . . . . . . . . . . . . . Scanalyzer 10 | . . . . . . . . . 4 . . . . . . . 2 . . . 2 . . . . . 2 . . . . . Insert Component 1 | . . . . . . . . . 1 . . . . . . . . . . . . . . . . . . . . . . . Analyze 1 | . . . . . . . . . 1 . . . . . . . . . . . . . . . . . . . . . . . Retrieve Study 8 | . . . . . . . . . 2 . . . . . . . 2 . . . 2 . . . . . 2 . . . . . Garrison Access Hacks 27 | . . . . . 1 . 1 . 2 . 1 . 1 . 1 . 5 . 2 . 1 . 1 . 3 . 1 . 1 . 6 . Unlock Access 11 | . . . . . 1 . 1 . 1 . 1 . 1 . . . 1 . . . 1 . 1 . 1 . 1 . 1 . . . Seal Access 9 | . . . . . . . . . 1 . . . . . 1 . 2 . 1 . . . . . 1 . . . . . 3 . Coupler Status 7 | . . . . . . . . . . . . . . . . . 2 . 1 . . . . . 1 . . . . . 3 . Unauthorized Hacks 36 | . 9 . . . 1 . 5 . 10 . . . . . 2 . 1 . 1 . 1 . . . 1 . . . . . 3 2 Terminals 23 | . 9 . . . . . 4 . 5 . . . . . . . 1 . . . . . . . . . . . . . 2 2 Assimilate 3 | . 1 . . . . . . . . . . . . . . . 1 . . . . . . . . . . . . . . 1 Botnet 9 | . 2 . . . . . 1 . 3 . . . . . . . . . . . . . . . . . . . . . 2 1 Operators 2 | . 1 . . . . . . . 1 . . . . . . . . . . . . . . . . . . . . . . . Skim 9 | . 5 . . . . . 3 . 1 . . . . . . . . . . . . . . . . . . . . . . . Fabricators 4 | . . . . . . . . . 3 . . . . . 1 . . . . . . . . . . . . . . . . . Report 1 | . . . . . . . . . 1 . . . . . . . . . . . . . . . . . . . . . . . Liberate 1 | . . . . . . . . . 1 . . . . . . . . . . . . . . . . . . . . . . . Haulers 2 | . . . . . . . . . 1 . . . . . 1 . . . . . . . . . . . . . . . . . Repair Stations 5 | . . . . . . . . . 1 . . . . . 1 . . . 1 . 1 . . . 1 . . . . . . . Mechanics 5 | . . . . . . . . . 1 . . . . . 1 . . . 1 . 1 . . . 1 . . . . . . . Recycling Units 1 | . . . . . . . . . . . . . . . . . . . . . . . . . . . . . . . 1 . Recyclers 1 | . . . . . . . . . . . . . . . . . . . . . . . . . . . . . . . 1 . Scanalyzers . | . . . . . . . . . . . . . . . . . . . . . . . . . . . . . . . . . Garrison Access 3 | . . . . . 1 . 1 . 1 . . . . . . . . . . . . . . . . . . . . . . . Reprogram 2 | . . . . . 1 . 1 . . . . . . . . . . . . . . . . . . . . . . . . . Watchers 1 | . . . . . . . . . 1 . . . . . . . . . . . . . . . . . . . . . . . Data Cores Recovered 2 | . . . . . . . 2 . . . . . . . . . . . . . . . . . . . . . . . . . Used . | . . . . . . . . . . . . . . . . . . . . . . . . . . . . . . . . . Hacking Detections 92 | . 5 . . . . 3 4 3 10 1 3 2 . 2 2 . 4 2 1 . 4 2 4 1 4 1 4 3 3 2 14 8 Full Trace Events 4 | . . . . . . . . . 2 . . . . . . . . . . . 1 . 1 . . . . . . . . . Feedback Events . | . . . . . . . . . . . . . . . . . . . . . . . . . . . . . . . . . Feedback Blocked . | . . . . . . . . . . . . . . . . . . . . . . . . . . . . . . . . . Robot Schematics Acquired 1 | . . . . . . . . . . . . . . . . . 1 . . . . . . . . . . . . . . . Robots Built 2 | . . . . . . . . . . . . . . . . . . . . . . . 2 . . . . . . . . . Authchips . | . . . . . . . . . . . . . . . . . . . . . . . . . . . . . . . . . Time 169 | . . . . . . . . . . . . . . . . . . . . . . . 169 . . . . . . . . . Total Robot Build Rating 12 | . . . . . . . . . . . . . . . . . . . . . . . 12 . . . . . . . . . Part Schematics Acquired 1 | . . . . . . . . . 1 . . . . . . . . . . . . . . . . . . . . . . . Parts Built . | . . . . . . . . . . . . . . . . . . . . . . . . . . . . . . . . . Authchips . | . . . . . . . . . . . . . . . . . . . . . . . . . . . . . . . . . Time . | . . . . . . . . . . . . . . . . . . . . . . . . . . . . . . . . . Total Part Build Rating . | . . . . . . . . . . . . . . . . . . . . . . . . . . . . . . . . . Part Studies Acquired 6 | . . . . . . . . . 1 . . . . . . . 1 . . . 2 . . . . . 2 . . . . . Parts Repaired . | . . . . . . . . . . . . . . . . . . . . . . . . . . . . . . . . . Time . | . . . . . . . . . . . . . . . . . . . . . . . . . . . . . . . . . Parts Recycled . | . . . . . . . . . . . . . . . . . . . . . . . . . . . . . . . . . Recycled Matter . | . . . . . . . . . . . . . . . . . . . . . . . . . . . . . . . . . Retrieved Matter . | . . . . . . . . . . . . . . . . . . . . . . . . . . . . . . . . . Retrieved Components . | . . . . . . . . . . . . . . . . . . . . . . . . . . . . . . . . . Parts Scanalyzed 1 | . . . . . . . . . 1 . . . . . . . . . . . . . . . . . . . . . . . Part Schematics Acquired 1 | . . . . . . . . . 1 . . . . . . . . . . . . . . . . . . . . . . . Parts Damaged . | . . . . . . . . . . . . . . . . . . . . . . . . . . . . . . . . . Bothacking | -11 -10 -10 -10 -9 -8 -8 -8 -8 -7 -7 -7 -7 -6 -6 -5 -5 -5 -5 -4 -4 -4 -4 -3 -3 -3 -3 -3 -3 -2 -2 -1 -1 ------------ Run | Yrd Mat Min Exi Min Mat Gar Mat Gar Fac Gar Fac Gar Fac Gar Fac Was Fac Gar Fac Was Fac Gar Res Gar Res Gar Res Gar Res Gar Acc Com Used RIF Installer 12 | . . . . . . 1 . 2 . 1 . 1 . 1 . . . 1 . . . 1 . 1 . 1 . 1 . 1 . . Code Merge 1 | . . . . . . . . . . . . . . . . . . . . . . . . . . . . . . 1 . . Threat Obfuscator 1 | . . . . . . . . . . . . . . . . . . . . . . 1 . . . . . . . . . . Signal Jammer 1 | . . . . . . . . . . . . . . . . . . 1 . . . . . . . . . . . . . . Robot Detection 1 | . . . . . . . . . . . . . . . . . . . . . . . . . . 1 . . . . . . Watcher Feeds 1 | . . . . . . . . . . . . . . . . . . . . . . . . 1 . . . . . . . . Patrol Navigation 1 | . . . . . . . . . . . . . . 1 . . . . . . . . . . . . . . . . . . Alert ID Control 1 | . . . . . . . . 1 . . . . . . . . . . . . . . . . . . . . . . . . Structural Interface 1 | . . . . . . . . . . 1 . . . . . . . . . . . . . . . . . . . . . . Autooverride 3 | . . . . . . . . 1 . . . 1 . . . . . . . . . . . . . . . 1 . . . . Robots Hacked 286 | . . . . . . . 17 12 16 . 3 4 4 12 7 6 20 10 18 . 6 24 8 17 28 14 7 5 9 23 4 12 Non-combat 78 | . . . . . . . 7 1 12 . 1 . 1 . 5 . 14 1 12 . 2 . 1 1 13 . 3 . 1 1 1 1 Combat 208 | . . . . . . . 10 11 4 . 2 4 3 12 2 6 6 9 6 . 4 24 7 16 15 14 4 5 8 22 3 11 Autooverrided 66 | . . . . . . . . . . . . . 2 6 . . 3 2 4 . 2 10 4 6 4 5 3 1 4 6 . 4 Robot Hacks Applied 296 | . . . . . . . 23 12 25 . 4 4 4 8 10 6 22 8 15 . 5 17 4 17 36 11 7 4 5 29 9 11 parse_system 24 | . . . . . . . 2 . 1 . 1 . 1 . 1 . 3 . . . 1 2 1 1 1 2 1 . . 2 . 4 generate_echo 1 | . . . . . . . . . . . . . . . 1 . . . . . . . . . . . . . . . . . find_chute 3 | . . . . . . . . . . . . . . . 1 . . . 2 . . . . . . . . . . . . . deconstruct_machine 8 | . . . . . . . . . 2 . . . 1 . . . 3 . 2 . . . . . . . . . . . . . hold_bot 1 | . . . . . . . . . . . . . . . . . 1 . . . . . . . . . . . . . . . ignore_repairs 10 | . . . . . . . 1 . . . . . . . . . . . 2 . . . . . 7 . . . . . . . map_walls 6 | . . . . . . . . . 1 . . . . . 1 . 1 . 1 . . . . . 2 . . . . . . . map_earth 3 | . . . . . . . . . . . . . . . . . 2 . 1 . . . . . . . . . . . . . drop_inventory 12 | . . . . . . . 3 . 1 . . . . . 1 . 1 . 1 . . . . . 3 . 1 . 1 . . . recall_reinforcements 1 | . . . . . . . . . . . . . . . . . . . . . 1 . . . . . . . . . . . find_recycling 4 | . . . . . . . . . . . . . . . 1 . 3 . . . . . . . . . . . . . . . ignore_parts 2 | . . . . . . . . . . . . . . . . . . . 2 . . . . . . . . . . . . . release_backups 1 | . . . . . . . . . 1 . . . . . . . . . . . . . . . . . . . . . . . deconstruct_bot 2 | . . . . . . . . . 2 . . . . . . . . . . . . . . . . . . . . . . . purge_threat 34 | . . . . . . . 4 . 6 . . . . . . . . . . . . . . 6 5 . 2 . . 9 2 . locate_traps 1 | . . . . . . . . . . . . . . . . . . . . . . . . . . . . . . 1 . . block_reporting 6 | . . . . . . . 3 . . . . . . . . . . . . . . . . . 1 . 1 . . . 1 . summon_haulers 1 | . . . . . . . . . . . . . . . . . 1 . . . . . . . . . . . . . . . map_route 4 | . . . . . . . . . 3 . . . . . . . . . 1 . . . . . . . . . . . . . ignore_targets 6 | . . . . . . . . . . . . . . . . 6 . . . . . . . . . . . . . . . . find_garrison 14 | . . . . . . . . . 1 . 1 . 1 . 1 . 2 . . . 1 . 1 . 2 . 1 . 1 . 2 . focus_fire 1 | . . . . . . . . . . . . . . . . . . . . . . . . . 1 . . . . . . . scatter_targeting 1 | . . . . . . . . . . . . . . . . . . . . . . 1 . . . . . . . . . . spike_heat 1 | . . . . . . . . . . . . . . . . . . . . . . . . . . . . . . 1 . . amplify_resonance 24 | . . . . . . . 1 2 1 . . . . 1 1 . 2 . 1 . . 3 . 1 4 3 1 1 . 2 . . wipe_record 6 | . . . . . . . 1 . . . . . . . . . 1 . . . . . . . 2 1 . . . 1 . . disable_weapons 1 | . . . . . . . . . . . . . . 1 . . . . . . . . . . . . . . . . . . reboot_system 13 | . . . . . . . 1 . 3 . . 1 . . 1 . . 1 . . . 1 . . 1 . . . . 1 1 2 overwrite_iff 6 | . . . . . . . . . . . . . . . . . . 1 . . . . . 1 1 1 . . 1 1 . . streamctrl_high 5 | . . . . . . . . 1 . . 1 . . 1 . . . . . . . . . . . . . . . 2 . . formatsys_low 12 | . . . . . . . 1 1 2 . . . . . . . 1 1 . . . . . 1 3 . . . . 1 1 . formatsys_high 81 | . . . . . . . 6 8 1 . 1 3 1 5 1 . 1 5 2 . 2 10 2 7 3 4 . 3 1 8 2 5 formatsys_deep 1 | . . . . . . . . . . . . . . . . . . . . . . . . . . . . . 1 . . . Relay Couplers Released 171 | . . . . . . 17 . 18 . 7 . 15 . 18 3 . 1 11 . . . 18 . 21 2 12 . 14 . 13 1 . Machine Destruction 171 | . . . . . . 17 . 18 . 7 . 15 . 18 3 . 1 11 . . . 18 . 21 2 12 . 14 . 13 1 . Attached 99 | . . . . . . . 6 8 6 . 1 2 3 6 1 1 2 4 2 . 1 7 1 7 9 5 1 4 3 10 3 6 Fabnet Peak Effective % . | . . . . . . . . . . . . . . . . . . . . . . . . . . . . . . . . . Robots Rewired 50 | . . . . . . 3 . . . 2 . . . . . . . 1 . . . 14 . 16 . 5 . 5 . 4 . . Allies Hacked 20 | . . . . . . . . . 1 . . . . . . . 3 1 . . . . . . 5 1 . 2 2 1 2 2 Hacks Repelled . | . . . . . . . . . . . . . . . . . . . . . . . . . . . . . . . . . Allies | -11 -10 -10 -10 -9 -8 -8 -8 -8 -7 -7 -7 -7 -6 -6 -5 -5 -5 -5 -4 -4 -4 -4 -3 -3 -3 -3 -3 -3 -2 -2 -1 -1 -------- Run | Yrd Mat Min Exi Min Mat Gar Mat Gar Fac Gar Fac Gar Fac Gar Fac Was Fac Gar Fac Was Fac Gar Res Gar Res Gar Res Gar Res Gar Acc Com Total Allies 268 | . 1 . . . 2 5 8 10 3 4 2 3 3 15 1 1 9 11 6 19 4 33 8 32 11 16 3 11 9 26 3 9 Largest Group 19 | . 1 1 1 1 3 5 9 6 7 5 7 6 4 7 7 4 4 6 5 19 7 16 17 15 14 7 8 9 6 7 7 3 Highest-Rated Group 947 | . 10 10 10 10 40 104 179 100 116 135 199 167 107 324 321 220 220 254 175 702 283 820 878 947 900 471 518 618 428 400 405 425 Highest-Rated Ally 219 | . 10 10 10 10 15 31 31 23 23 32 32 32 29 85 77 77 83 83 58 50 49 119 119 116 142 89 89 116 116 80 219 219 Total Orders 113 | . 1 2 . 3 4 2 3 8 6 1 3 24 3 21 . . 1 12 4 . . . 1 4 4 . . 5 . . . 1 STAY 45 | . 1 1 . 2 2 1 1 4 2 . 1 7 1 8 . . 1 5 . . . . . 2 2 . . 3 . . . 1 FOLLOW 35 | . . 1 . 1 2 1 2 3 3 . 1 7 1 4 . . . 4 1 . . . . 2 . . . 2 . . . . AID 32 | . . . . . . . . 1 1 1 1 10 1 9 . . . 3 3 . . . . . 2 . . . . . . . EXPLORE 1 | . . . . . . . . . . . . . . . . . . . . . . . 1 . . . . . . . . . Ally Attacks 1541 | . . . . . . 23 70 35 93 . 31 73 17 66 34 52 49 31 34 84 46 106 66 87 166 24 56 82 51 74 29 62 Total Damage 50960 | . . . . . . 346 937 455 1710 . 770 1104 206 1799 833 2408 1204 774 785 3940 826 2724 2814 2699 6304 953 1872 2387 2502 2491 2428 5689 Kills 277 | . . . . . . 6 9 7 12 . 4 13 1 12 10 5 11 3 5 10 5 11 20 12 28 4 14 15 23 13 4 20 Allies Corrupted 22 | . . . . . . . . . . . . 1 . . . . 2 . . . . 1 . 1 1 2 2 2 3 3 . 4 Allies Melted 3 | . . . . . . . 1 . . . . . . 1 . . . . . . . . . . . . . . . 1 . . Field Lobotomies 4 | . . . . . . . . . . . . . . . . . 2 1 . . . . . 1 . . . . . . . . Intel | -11 -10 -10 -10 -9 -8 -8 -8 -8 -7 -7 -7 -7 -6 -6 -5 -5 -5 -5 -4 -4 -4 -4 -3 -3 -3 -3 -3 -3 -2 -2 -1 -1 ------- Run | Yrd Mat Min Exi Min Mat Gar Mat Gar Fac Gar Fac Gar Fac Gar Fac Was Fac Gar Fac Was Fac Gar Res Gar Res Gar Res Gar Res Gar Acc Com Active Infowar (turns) 16751 | 49 1677 308 920 288 623 1071 . . 681 986 347 1576 272 708 319 434 721 448 . . 93 38 55 . . 1232 565 1294 686 1359 . 1 Optics 6828 | . . . . . 621 1071 . . . . . . . . . . . . . . . . . . . 1232 565 1294 686 1359 . . Terrain 1026 | . . . . . 623 78 . . 324 . . . . . . . . . . . . . . . . . . . . . . 1 Structural 1504 | . 20 . . . . . . . . . . . . . 222 434 608 34 . . 93 38 55 . . . . . . . . . Seismic 3222 | 49 1657 308 920 288 . . . . . . . . . . . . . . . . . . . . . . . . . . . . T.N.C. 724 | . . . . . . . . . 131 . . . . . . . 145 448 . . . . . . . . . . . . . . Spoofing 2 | . . . . . . . . . . . . . . . . . . . . . . . . . . . . 2 . . . . Jamming 4864 | . . . . . . . . . 344 986 347 1576 272 708 138 46 298 149 . . . . . . . . . . . . . . Robot Analysis Total 2 | . 1 . . . . . 1 . . . . . . . . . . . . . . . . . . . . . . . . . Derelict Logs Recovered 2 | . . 1 . 1 . . . . . . . . . . . . . . . . . . . . . . . . . . . . Drone Launches 2 | . . . . . . . . . . . . . . . . . . . . . . . 2 . . . . . . . . . Drone Recoveries . | . . . . . . . . . . . . . . . . . . . . . . . . . . . . . . . . . Exploration | -11 -10 -10 -10 -9 -8 -8 -8 -8 -7 -7 -7 -7 -6 -6 -5 -5 -5 -5 -4 -4 -4 -4 -3 -3 -3 -3 -3 -3 -2 -2 -1 -1 ------------- Run | Yrd Mat Min Exi Min Mat Gar Mat Gar Fac Gar Fac Gar Fac Gar Fac Was Fac Gar Fac Was Fac Gar Res Gar Res Gar Res Gar Res Gar Acc Com Turns Passed 32531 | 242 2290 308 920 331 646 2132 516 1851 1621 986 368 1587 272 1406 325 434 808 1093 602 490 317 844 250 1276 2173 1381 565 1294 686 1762 821 1934 Spaces Moved 21074 | 117 660 129 382 128 357 1191 286 835 737 486 195 722 130 690 411 356 928 1014 648 339 399 1092 340 980 843 692 297 685 397 1014 1279 2315 Core 5 | 2 . . . . . . . . . . . . . . . . 1 . . . . . . 2 . . . . . . . . Treads 6252 | 115 660 129 382 128 6 . . 174 309 40 . 14 . 656 . . . . . . . . . 149 843 692 297 685 397 576 . . Legs . | . . . . . . . . . . . . . . . . . . . . . . . . . . . . . . . . . Wheels 4430 | . . . . . 351 1191 286 661 428 446 195 708 130 34 . . . . . . . . . . . . . . . . . . Hover 10387 | . . . . . . . . . . . . . . . 411 356 927 1014 648 339 399 1092 340 829 . . . . . 438 1279 2315 Flight . | . . . . . . . . . . . . . . . . . . . . . . . . . . . . . . . . . Fastest Speed 25 | 50 160 240 240 240 155 120 145 145 160 180 180 165 165 162 59 59 59 59 49 45 45 45 41 48 160 158 153 145 145 34 25 25 Average Speed 111 | 158 236 240 240 240 167 143 147 173 173 184 180 181 176 163 59 59 60 68 49 46 45 45 45 78 161 159 160 149 149 113 34 40 Slowest Speed 1750 | 160 240 240 240 240 240 170 160 240 280 229 195 243 180 243 59 59 1150 129 49 110 45 45 115 1750 162 162 171 153 153 156 122 131 Overloaded Moves 133 | . . . . . . . . . . . . . . . . . . . . . . . . . . . . . . . 3 130 Propulsion Burnouts . | . . . . . . . . . . . . . . . . . . . . . . . . . . . . . . . . . Robots Hopped . | . . . . . . . . . . . . . . . . . . . . . . . . . . . . . . . . . Potential Cave-ins 8 | . . . . . . . . . . . . . . . . . . . 2 . . . . . . . . . . . . 6 Cave-ins Triggered . | . . . . . . . . . . . . . . . . . . . . . . . . . . . . . . . . . Exploration Rate (%) 54 | 7 83 33 69 34 21 95 38 95 33 94 5 97 6 95 9 87 32 87 17 93 14 87 10 84 35 85 20 98 26 92 38 63 Regions Visited 32 Branch Regions 4 Pre-discovered Areas 5 | . 2 1 1 1 . . . . . . . . . . . . . . . . . . . . . . . . . . . . Known Exits Taken 12 | . . . 1 . 1 . 1 . 1 . 1 . 1 . . . 1 . . . 1 . 1 . 1 . 1 . 1 . . . Unknown Exits Taken 5 | 1 1 1 . 1 . . . . . . . . . . . . . . . . . . . . . . . . . . 1 . Scrap Searched 1 | . . . . 1 . . . . . . . . . . . . . . . . . . . . . . . . . . . . Spaces Dug 274 | . 5 . . 10 1 5 . . 17 . . . . . 1 . 5 28 21 2 2 8 . 26 29 2 14 . 15 3 30 50 Terrain Destroyed 925 | . 9 . . 25 49 75 1 12 151 . . 1 . 25 1 1 30 115 36 2 9 14 10 77 72 8 18 17 26 11 44 86 Melee 19 | . . . . . . 5 . . 14 . . . . . . . . . . . . . . . . . . . . . . . Projectile 378 | . 5 . . 1 2 . 1 2 3 . . . . . 1 1 5 12 36 2 9 14 10 19 45 8 18 17 26 11 44 86 AOE 528 | . 4 . . 24 47 70 . 10 134 . . 1 . 25 . . 25 103 . . . . . 58 27 . . . . . . . Terrain Rammed . | . . . . . . . . . . . . . . . . . . . . . . . . . . . . . . . . . Walls Destroyed . | . . . . . . . . . . . . . . . . . . . . . . . . . . . . . . . . . Machines Disabled . | . . . . . . . . . . . . . . . . . . . . . . . . . . . . . . . . . Actions | -11 -10 -10 -10 -9 -8 -8 -8 -8 -7 -7 -7 -7 -6 -6 -5 -5 -5 -5 -4 -4 -4 -4 -3 -3 -3 -3 -3 -3 -2 -2 -1 -1 --------- Run | Yrd Mat Min Exi Min Mat Gar Mat Gar Fac Gar Fac Gar Fac Gar Fac Was Fac Gar Fac Was Fac Gar Res Gar Res Gar Res Gar Res Gar Acc Com Total 28367 | 145 1306 128 387 150 392 1461 352 1100 949 539 209 881 156 871 478 548 1111 1366 905 671 516 1412 429 1447 1463 954 379 941 486 1558 1561 3116 Wait 2992 | 2 567 . . 2 13 60 13 15 27 6 . 31 7 27 13 149 38 175 136 294 40 89 28 209 235 78 19 82 11 192 91 343 Move 21045 | 116 659 128 381 127 356 1190 285 834 736 485 194 721 129 689 411 355 928 1013 648 338 399 1091 339 979 842 691 297 683 396 1013 1278 2314 Hop . | . . . . . . . . . . . . . . . . . . . . . . . . . . . . . . . . . Pick Up 307 | 6 18 . 2 6 7 21 3 17 11 8 2 8 1 16 7 3 11 23 7 2 3 16 3 11 22 13 . 11 3 30 5 11 Fast Attach 129 | 6 1 . . . . 3 1 2 7 . 1 6 1 8 . . 4 4 2 1 2 2 6 12 11 4 6 3 8 13 4 11 Attach 175 | 1 . . 1 . 5 5 3 11 6 3 1 3 2 8 5 1 10 15 4 1 . 9 1 9 14 3 1 3 2 23 4 21 Detach 99 | . . . . . . 2 . 8 3 2 . 1 1 5 1 . 7 10 . . . 6 . 8 7 4 . 2 1 14 1 16 Swap 450 | 1 14 . 1 4 2 27 13 29 39 2 4 15 4 20 8 . 15 18 20 6 13 15 5 10 36 17 4 17 5 30 23 33 Drop 268 | . 7 . 2 6 3 22 3 7 11 5 3 8 . 20 6 4 11 19 5 4 5 8 7 13 14 12 6 10 4 22 7 14 Fire 2365 | 13 40 . . 3 6 67 31 101 87 9 4 72 11 62 14 36 77 74 83 25 42 149 39 173 262 124 44 121 56 161 104 275 Melee 33 | . . . . . . 17 . . 16 . . . . . . . . . . . . . . . . . . . . . . . Ram . | . . . . . . . . . . . . . . . . . . . . . . . . . . . . . . . . . Kick . | . . . . . . . . . . . . . . . . . . . . . . . . . . . . . . . . . Crush 18 | . . . . 2 . . . 2 2 . . . . . . . . . . . . . . . 12 . . . . . . . Escape Stasis 158 | . . . . . . 16 . 72 . . . 16 . 4 4 . . 9 . . . 2 . . . . . . . 35 . . Rewire 77 | . . . . . . 22 . 2 2 5 . . . 3 1 . 2 2 . . . 17 1 15 . . . 1 . 2 2 . Trap 6 | . . . . . . . . . 2 . . . . . . . . 4 . . . . . . . . . . . . . . Miscellaneous 245 | . . . . . . 9 . . . 14 . . . 9 8 . 8 . . . 12 8 . 8 8 8 2 8 . 23 42 78 Route ------- -11/Scrapyard -10/Materials (discovered 4 exits: [*Mat x2] / [*Min x2]) -10/Mines -10/Exiles (discovered 2 exits: *Min x2) -9/Mines -8/Materials -8/Garrison (discovered 4 exits: *Mat x4) -8/Materials (discovered 4 exits: *Fac / [*Sto x2] / Gar) -8/Garrison (discovered 3 exits: *Fac x3) -7/Factory (discovered 4 exits: *Fac x3 / Gar) -7/Garrison (discovered 4 exits: *Fac x3 / *Fac) -7/Factory -7/Garrison (discovered 3 exits: *Fac x3) -6/Factory -6/Garrison (discovered 3 exits: *Fac x3) -5/Factory (discovered 2 exits: *Fac / [*Upp]) -5/Waste -5/Factory (discovered 2 exits: *Fac / Gar) -5/Garrison (discovered 3 exits: *Fac x3) -4/Factory -4/Waste -4/Factory (discovered 2 exits: *Res / Gar) -4/Garrison (discovered 3 exits: *Res x3) -3/Research -3/Garrison (discovered 3 exits: *Res x3) -3/Research (discovered 3 exits: *Res x2 / Gar) -3/Garrison (discovered 4 exits: *Res x3 / *Res) -3/Research -3/Garrison (discovered 3 exits: *Res x3) -2/Research (discovered 2 exits: [*Tes] / Gar) -2/Garrison (discovered 3 exits: *Acc x3) -1/Access (discovered 2 exits: Sur / *Com) -1/Command To Epsilon Eridani History --------- Turn | Location | Event 23 | -11/Scrapyard | Discovered new exit (range 15) 243 | -11/Scrapyard | Entered Materials 310 | -10/Materials | Build established: Mutant 520 | -10/Materials | Discovered new exit (range 5) 829 | -10/Materials | Discovered new exit (range 16) 1402 | -10/Materials | Central database locked down 1796 | -10/Materials | Discovered new exit (range 15) 1913 | -10/Materials | Discovered new exit (range 11) 2174 | -10/Materials | Learned Materials stockpile data 2279 | -10/Materials | Learned 2 Storage zone layouts 2340 | -10/Materials | Loaded intel: 8 terminal locations 2373 | -10/Materials | Learned location of Mines (-10) 2533 | -10/Materials | Learned Materials stockpile data 2533 | -10/Materials | Entered Mines 2533 | -10/Mines | Accompanied by 1 ally 2603 | -10/Mines | Learned location of Storage (-8) 2826 | -10/Mines | Deemed a non-threat by the Exiles lab entrance 2829 | -10/Mines | Discovered new exit (range 5) 2841 | -10/Mines | Entered Exiles 2841 | -10/Exiles | Accompanied by 1 ally 2842 | -10/Exiles | Identified exit to Mines 2899 | -10/Exiles | Met 8R-AWN 2935 | -10/Exiles | Met EX-HEX 3014 | -10/Exiles | Met EX-BIN 3050 | -10/Exiles | Aligned with FarCom system 3053 | -10/Exiles | Given EX-Vault access code 3113 | -10/Exiles | Opened EX-Vault 3132 | -10/Exiles | Found Latent Energy Streamer 3256 | -10/Exiles | Warned to stay clear of 0b10 Research branches 3344 | -10/Exiles | Found Field Lobotomy Kit 3574 | -10/Exiles | Met EX-DEC 3639 | -10/Exiles | Learned location of Zion (-6) 3761 | -10/Exiles | Left Exiles lab with Field Lobotomy Kit 3761 | -10/Exiles | Entered Mines 3761 | -9/Mines | Accompanied by 1 ally 4000 | -9/Mines | Discovered new exit (range 10) 4030 | -9/Mines | Met a Derelict who couldn't figure out how to use a Trap Extractor 4092 | -9/Mines | Entered Materials 4092 | -8/Materials | Accompanied by 1 ally 4092 | -8/Materials | Evolved 4 slots: Propulsion x1, Utility x3 4312 | -8/Materials | Identified exit to Garrison 4414 | -8/Materials | Build established: Skirmisher 4726 | -8/Materials | Garrison activated, responded to threat 4738 | -8/Materials | Entered Garrison 4738 | -8/Garrison | Accompanied by 3 allies 4778 | -8/Garrison | Triggered checkpoint 4929 | -8/Garrison | Garrison Relay disabled 5046 | -8/Garrison | Triggered checkpoint 5096 | -8/Garrison | Triggered checkpoint 5128 | -8/Garrison | Build established: Mutant 5274 | -8/Garrison | Discovered new exit (range 13) 5372 | -8/Garrison | Triggered checkpoint 5393 | -8/Garrison | Garrison Relay disabled 5589 | -8/Garrison | Phase Generator disabled 5778 | -8/Garrison | Discovered new exit (range 5) 5803 | -8/Garrison | Garrison Relay disabled 5893 | -8/Garrison | Triggered checkpoint 5992 | -8/Garrison | Discovered new exit (range 11) 6050 | -8/Garrison | Triggered checkpoint 6075 | -8/Garrison | Garrison Relay disabled 6120 | -8/Garrison | Found Launcher Loader 6331 | -8/Garrison | Rescued a captive Derelict 6338 | -8/Garrison | Rescued a captive Derelict 6410 | -8/Garrison | Triggered checkpoint 6431 | -8/Garrison | Discovered new exit (range 3) 6673 | -8/Garrison | Installed Relay Interface Framework 6870 | -8/Garrison | Entered Materials 6870 | -8/Materials | Accompanied by 5 allies 6878 | -8/Materials | Discovered new exit (range 5) 6894 | -8/Materials | Discovered new exit (range 15) 6974 | -8/Materials | Build established: Bothacker-Mutant 7072 | -8/Materials | Discovered new exit (range 15) 7256 | -8/Materials | Garrison activated, responded to threat 7282 | -8/Materials | Central database locked down 7313 | -8/Materials | Lost 5 allies 7344 | -8/Materials | Identified exit to Garrison 7386 | -8/Materials | Entered Garrison 7386 | -8/Garrison | Accompanied by 4 allies 7488 | -8/Garrison | Garrison Relay disabled 7596 | -8/Garrison | Triggered checkpoint 7599 | -8/Garrison | Triggered checkpoint 7926 | -8/Garrison | Triggered checkpoint 8023 | -8/Garrison | Garrison Relay disabled 8052 | -8/Garrison | Garrison Relay disabled 8113 | -8/Garrison | Discovered new exit (range 6) 8190 | -8/Garrison | Lost 3 allies 8558 | -8/Garrison | Triggered checkpoint 8587 | -8/Garrison | Garrison Relay disabled 8634 | -8/Garrison | Discovered new exit (range 8) 8876 | -8/Garrison | Triggered checkpoint 8927 | -8/Garrison | Discovered new exit (range 10) 9087 | -8/Garrison | Garrison Relay disabled 9144 | -8/Garrison | Expanded RIF knowledge: Alert ID Control 9173 | -8/Garrison | Expanded RIF knowledge: Autooverride 9237 | -8/Garrison | Entered Factory 9237 | -7/Factory | Accompanied by 6 allies 9237 | -7/Factory | Evolved 2 slots: Propulsion x1, Utility x1 9257 | -7/Factory | Identified exit to DSF 9597 | -7/Factory | Discovered new exit (range 15) 9694 | -7/Factory | Central database locked down 10037 | -7/Factory | First assault squad dispatched 10576 | -7/Factory | Discovered new exit (range 64) 10576 | -7/Factory | Discovered new exit (range 90) 10786 | -7/Factory | Identified exit to Garrison 10808 | -7/Factory | Cargo convoy interrupted 10858 | -7/Factory | Entered Garrison 10858 | -7/Garrison | Discovered recently destroyed garrison 10858 | -7/Garrison | Accompanied by 1 ally 10870 | -7/Garrison | Rescued a captive Derelict 10883 | -7/Garrison | Rescued a captive Derelict 10902 | -7/Garrison | Garrison Relay disabled 11113 | -7/Garrison | Phase Generator disabled 11216 | -7/Garrison | Discovered new exit (range 9) 11300 | -7/Garrison | Garrison Relay disabled 11479 | -7/Garrison | Discovered new exit (range 15) 11630 | -7/Garrison | Expanded RIF knowledge: Structural Interface 11796 | -7/Garrison | Discovered new exit (range 10) 11824 | -7/Garrison | Discovered new exit (range 5) 11844 | -7/Garrison | Entered Factory 11844 | -7/Factory | Accompanied by 5 allies 11946 | -7/Factory | Build established: Botlord-Mutant 12104 | -7/Factory | Garrison activated, responded to threat 12202 | -7/Factory | Identified exit to Garrison 12212 | -7/Factory | Entered Garrison 12212 | -7/Garrison | Accompanied by 6 allies 12477 | -7/Garrison | Garrison Relay disabled 12608 | -7/Garrison | Triggered checkpoint 12608 | -7/Garrison | Triggered checkpoint 12636 | -7/Garrison | Triggered checkpoint 12645 | -7/Garrison | Triggered checkpoint 12726 | -7/Garrison | Triggered checkpoint 12820 | -7/Garrison | Discovered new exit (range 10) 12876 | -7/Garrison | Triggered checkpoint 12879 | -7/Garrison | Garrison Relay disabled 12905 | -7/Garrison | Build established: Bothacker-Mutant 12911 | -7/Garrison | Expanded RIF knowledge: Autooverride 13204 | -7/Garrison | Garrison Relay disabled 13207 | -7/Garrison | Build established: Botlord-Mutant 13251 | -7/Garrison | Discovered new exit (range 10) 13302 | -7/Garrison | Triggered checkpoint 13587 | -7/Garrison | Learned Factory security intel 13614 | -7/Garrison | Discovered new exit (range 10) 13624 | -7/Garrison | Triggered checkpoint 13691 | -7/Garrison | Garrison Relay disabled 13799 | -7/Garrison | Entered Factory 13799 | -6/Factory | Accompanied by 2 allies 13799 | -6/Factory | Evolved 2 slots: Utility x2 14063 | -6/Factory | Identified exit to Garrison 14071 | -6/Factory | Entered Garrison 14071 | -6/Garrison | Accompanied by 2 allies 14149 | -6/Garrison | Triggered checkpoint 14165 | -6/Garrison | Garrison Relay disabled 14205 | -6/Garrison | Rescued a captive Derelict 14205 | -6/Garrison | Rescued a captive Derelict 14317 | -6/Garrison | Triggered checkpoint 14387 | -6/Garrison | Spotted B-75 Beast 14389 | -6/Garrison | Triggered checkpoint 14422 | -6/Garrison | Hijacked Beast 5a control node with streamctrl_high 14430 | -6/Garrison | Lost 3 allies 14517 | -6/Garrison | Triggered checkpoint 14524 | -6/Garrison | Destroyed Beast 5a 14547 | -6/Garrison | Triggered checkpoint 14571 | -6/Garrison | Triggered checkpoint 14652 | -6/Garrison | Discovered new exit (range 14) 14805 | -6/Garrison | Triggered checkpoint 14865 | -6/Garrison | Garrison Relay disabled 15011 | -6/Garrison | Triggered checkpoint 15038 | -6/Garrison | Garrison Relay disabled 15117 | -6/Garrison | Found embedded Infiltrators 15126 | -6/Garrison | Discovered new exit (range 11) 15157 | -6/Garrison | Expanded RIF knowledge: Patrol Navigation 15247 | -6/Garrison | Triggered checkpoint 15267 | -6/Garrison | Garrison Relay disabled 15330 | -6/Garrison | Discovered new exit (range 9) 15379 | -6/Garrison | Spotted B-75 Beast 15387 | -6/Garrison | Allies destroyed B-75 Beast 15477 | -6/Garrison | Entered Factory 15477 | -5/Factory | Accompanied by 7 allies 15477 | -5/Factory | Evolved 2 slots: Propulsion x2 15588 | -5/Factory | Discovered new exit (range 16) 15591 | -5/Factory | Lost 3 allies 15769 | -5/Factory | Discovered new exit (range 16) 15777 | -5/Factory | First assault squad dispatched 15802 | -5/Factory | Sucked down chute 15802 | -5/Factory | Entered Waste 15802 | -5/Waste | Met up with 1 ally sucked down the chute earlier 15816 | -5/Waste | Spotted C-40 Crusher 15834 | -5/Waste | Allies destroyed C-40 Crusher 15846 | -5/Waste | Spotted C-40 Crusher 15858 | -5/Waste | Destroyed C-40 Crusher 15868 | -5/Waste | Found Damper Plating 15877 | -5/Waste | 3 allies followed down the chute 15885 | -5/Waste | Spotted C-40 Crusher 15889 | -5/Waste | Spotted C-40 Crusher 15894 | -5/Waste | Spotted C-40 Crusher 15899 | -5/Waste | Spotted C-40 Crusher 15921 | -5/Waste | Allies destroyed C-40 Crusher 15930 | -5/Waste | Allies destroyed C-40 Crusher 15937 | -5/Waste | Allies destroyed C-40 Crusher 15982 | -5/Waste | Discovered new exit (range 12) 16236 | -5/Waste | Entered Factory 16236 | -5/Factory | Accompanied by 4 allies 16281 | -5/Factory | Discovered new exit (range 11) 16567 | -5/Factory | Build established: Bothacker-Mutant 16869 | -5/Factory | Assimilated P-70 Sage with FLK Orb 17037 | -5/Factory | Assimilated P-80 Master with FLK Orb 17044 | -5/Factory | Identified exit to Garrison 17044 | -5/Factory | Entered Garrison 17044 | -5/Garrison | Accompanied by 1 ally 17084 | -5/Garrison | Triggered checkpoint 17089 | -5/Garrison | Garrison Relay disabled 17133 | -5/Garrison | Spotted B-75 Beast 17194 | -5/Garrison | Triggered checkpoint 17220 | -5/Garrison | Triggered checkpoint 17220 | -5/Garrison | Expanded RIF knowledge: Signal Jamming 17271 | -5/Garrison | Garrison Relay disabled 17359 | -5/Garrison | Triggered checkpoint 17368 | -5/Garrison | Spotted B-75 Beast 17376 | -5/Garrison | Discovered new exit (range 10) 17409 | -5/Garrison | Lost 3 allies 17483 | -5/Garrison | Assimilated H-66 Slayer with FLK Orb 17500 | -5/Garrison | Destroyed B-75 Beast 17574 | -5/Garrison | Found Relay Coupler [Proto] 17578 | -5/Garrison | Found Relay Coupler [Proto] 17582 | -5/Garrison | Found Relay Coupler [Proto] 17584 | -5/Garrison | Found Relay Coupler [Proto] 17626 | -5/Garrison | Triggered checkpoint 17628 | -5/Garrison | Triggered checkpoint 17659 | -5/Garrison | Destroyed 8 combat bots 17727 | -5/Garrison | Triggered checkpoint 17755 | -5/Garrison | Destroyed 8 combat bots 17818 | -5/Garrison | Triggered checkpoint 17851 | -5/Garrison | Build established: Botlord-Mutant 17874 | -5/Garrison | Garrison Relay disabled 17923 | -5/Garrison | Discovered new exit (range 15) 17975 | -5/Garrison | Spotted B-86 Titan 17976 | -5/Garrison | Discovered new exit (range 13) 18004 | -5/Garrison | Found Quantum Capacitor 18137 | -5/Garrison | Entered Factory 18137 | -4/Factory | Accompanied by 5 allies 18137 | -4/Factory | Evolved 2 slots: Power x1, Propulsion x1 18387 | -4/Factory | First assault squad dispatched 18739 | -4/Factory | Manually triggered Chute Trap 18739 | -4/Factory | Sucked down chute 18739 | -4/Factory | Entered Waste 18749 | -4/Waste | Spotted C-40 Crusher 18754 | -4/Waste | Spotted C-40 Crusher 18755 | -4/Waste | Spotted C-40 Crusher 18763 | -4/Waste | Spotted C-40 Crusher 18764 | -4/Waste | Destroyed C-40 Crusher 18785 | -4/Waste | Warlord forces began an assault 18790 | -4/Waste | Destroyed C-40 Crusher 18835 | -4/Waste | Lost 4 allies 18848 | -4/Waste | Spotted C-40 Crusher 18865 | -4/Waste | Allies destroyed C-40 Crusher 18897 | -4/Waste | Found Prototype Device 18897 | -4/Waste | Identified Exp. Phase Shifter 19191 | -4/Waste | Discovered new exit (range 16) 19229 | -4/Waste | Entered Factory 19229 | -4/Factory | Accompanied by 6 allies 19435 | -4/Factory | Discovered new exit (range 11) 19545 | -4/Factory | Identified exit to Garrison 19546 | -4/Factory | Entered Garrison 19546 | -4/Garrison | Accompanied by 6 allies 19554 | -4/Garrison | Triggered checkpoint 19616 | -4/Garrison | Garrison Relay disabled 19644 | -4/Garrison | Garrison Relay disabled 19656 | -4/Garrison | Triggered checkpoint 19670 | -4/Garrison | Triggered checkpoint 19702 | -4/Garrison | Triggered checkpoint 19737 | -4/Garrison | Lost 4 allies 19821 | -4/Garrison | Garrison Relay disabled 19837 | -4/Garrison | Lost 3 allies 19838 | -4/Garrison | Triggered checkpoint 19860 | -4/Garrison | Discovered new exit (range 8) 19896 | -4/Garrison | Triggered checkpoint 19996 | -4/Garrison | Discovered new exit (range 7) 20032 | -4/Garrison | Triggered checkpoint 20105 | -4/Garrison | Expanded RIF knowledge: Threat Obfuscation 20146 | -4/Garrison | Garrison Relay disabled 20170 | -4/Garrison | Triggered checkpoint 20210 | -4/Garrison | Garrison Relay disabled 20289 | -4/Garrison | Rewired Executioner 20293 | -4/Garrison | Rewired Executioner 20296 | -4/Garrison | Lost 4 allies 20313 | -4/Garrison | Discovered new exit (range 6) 20322 | -4/Garrison | Triggered checkpoint 20390 | -4/Garrison | Entered Research 20390 | -3/Research | Accompanied by 16 allies 20390 | -3/Research | Evolved 2 slots: Propulsion x1, Utility x1 20614 | -3/Research | Fabricated P-70 Sage? 20636 | -3/Research | Identified exit to Garrison 20640 | -3/Research | First assault squad dispatched 20640 | -3/Research | Entered Garrison 20656 | -3/Garrison | Lost 6 allies 20664 | -3/Garrison | Triggered checkpoint 20668 | -3/Garrison | Garrison Relay disabled 20686 | -3/Garrison | Triggered checkpoint 20709 | -3/Garrison | Garrison Relay disabled 20797 | -3/Garrison | Triggered checkpoint 20833 | -3/Garrison | Lost 4 allies 20861 | -3/Garrison | Triggered checkpoint 20862 | -3/Garrison | Triggered checkpoint 20889 | -3/Garrison | Spotted B-86 Titan 20905 | -3/Garrison | Lost 8 allies 20907 | -3/Garrison | Destroyed 7 combat bots 21023 | -3/Garrison | Assimilated B-86 Titan with FLK Orb 21035 | -3/Garrison | Lost 3 parts (1p1u1w) 21040 | -3/Garrison | Triggered checkpoint 21059 | -3/Garrison | Discovered new exit (range 12) 21061 | -3/Garrison | Spotted B-86 Titan 21158 | -3/Garrison | Discovered new exit (range 11) 21245 | -3/Garrison | Garrison Relay disabled 21250 | -3/Garrison | Triggered checkpoint 21303 | -3/Garrison | Triggered checkpoint 21313 | -3/Garrison | Garrison Relay disabled 21340 | -3/Garrison | Expanded RIF knowledge: Watcher Feeds 21536 | -3/Garrison | Allies destroyed B-86 Titan 21795 | -3/Garrison | Garrison Relay disabled 21808 | -3/Garrison | Triggered checkpoint 21840 | -3/Garrison | Discovered new exit (range 2) 21916 | -3/Garrison | Entered Research 21916 | -3/Research | Accompanied by 14 allies 21979 | -3/Research | Lost 3 allies 22015 | -3/Research | Spotted B-86 Titan 22022 | -3/Research | Destroyed B-86 Titan 22075 | -3/Research | Unchained authorized (6S-H0T) 22115 | -3/Research | Exiles provided nearest exit location to -2/Research 22245 | -3/Research | Spotted B-86 Titan 22250 | -3/Research | Destroyed B-86 Titan 22292 | -3/Research | P-80 Master assimilated allied Warden 8c 22303 | -3/Research | P-80 Master assimilated allied Warden 8k 22322 | -3/Research | Lost 4 allies 22479 | -3/Research | Found Prototype Launcher 22479 | -3/Research | Identified Hellfire Missile Launcher 22618 | -3/Research | Discovered exit to Research (range 19) 23215 | -3/Research | Cargo convoy interrupted 23333 | -3/Research | Found Spectral Analyzer 23405 | -3/Research | System corruption reached 10% 23815 | -3/Research | System corruption reached 30% 24005 | -3/Research | Identified exit to Garrison 24089 | -3/Research | Entered Garrison 24089 | -3/Garrison | Accompanied by 1 ally 24229 | -3/Garrison | Garrison Relay disabled 24349 | -3/Garrison | Triggered checkpoint 24359 | -3/Garrison | Triggered checkpoint 24398 | -3/Garrison | Lost 6 allies 24675 | -3/Garrison | Garrison Relay disabled 24702 | -3/Garrison | Garrison Relay disabled 24750 | -3/Garrison | Discovered exit to Research (range 8) 24777 | -3/Garrison | Triggered checkpoint 24798 | -3/Garrison | Discovered new exit (range 3) 24941 | -3/Garrison | Triggered checkpoint 24978 | -3/Garrison | Discovered exit to Research (range 16) 25034 | -3/Garrison | Expanded RIF knowledge: Robot Detection 25237 | -3/Garrison | Rescued a captive Derelict 25256 | -3/Garrison | Discovered exit to Research (range 11) 25470 | -3/Garrison | Entered Research 25470 | -3/Research | Accompanied by 7 allies 25791 | -3/Research | Central database locked down 25980 | -3/Research | Garrison activated, responded to threat 26035 | -3/Research | Identified exit to Garrison 26035 | -3/Research | Entered Garrison 26035 | -3/Garrison | Accompanied by 5 allies 26050 | -3/Garrison | Found embedded Infiltrators 26109 | -3/Garrison | Garrison Relay disabled 26129 | -3/Garrison | Triggered checkpoint 26255 | -3/Garrison | Spotted B-86 Titan 26256 | -3/Garrison | Triggered checkpoint 26261 | -3/Garrison | Assimilated Titan 8b with formatsys_high 26264 | -3/Garrison | Triggered checkpoint 26283 | -3/Garrison | Triggered checkpoint 26304 | -3/Garrison | P-80 Master assimilated allied Warden 8p 26344 | -3/Garrison | Lost 8 allies 26401 | -3/Garrison | Destroyed 12 combat bots 26453 | -3/Garrison | Triggered checkpoint 26537 | -3/Garrison | Garrison Relay disabled 26604 | -3/Garrison | Discovered exit to Research (range 12) 26731 | -3/Garrison | Expanded RIF knowledge: Autooverride 26757 | -3/Garrison | Triggered checkpoint 26791 | -3/Garrison | Garrison Relay disabled 26896 | -3/Garrison | Discovered exit to Research (range 14) 27086 | -3/Garrison | Discovered exit to Research (range 11) 27124 | -3/Garrison | Spotted B-86 Titan 27128 | -3/Garrison | Rewired B-86 Titan 27133 | -3/Garrison | Rewired B-86 Titan 27143 | -3/Garrison | Destroyed B-86 Titan 27239 | -3/Garrison | Triggered checkpoint 27266 | -3/Garrison | Garrison Relay disabled 27329 | -3/Garrison | Entered Research 27329 | -2/Research | Accompanied by 2 allies 27329 | -2/Research | Evolved 2 slots: Power x1, Utility x1 27503 | -2/Research | Unchained authorized (6S-H0T) 27514 | -2/Research | Spotted B-90 Cyclops 27576 | -2/Research | Discovered new exit (range 24) 27579 | -2/Research | First assault squad dispatched 27664 | -2/Research | Assimilated Heavy ARC 9a with formatsys_deep 27970 | -2/Research | P-80 Master assimilated allied Terminator 9a 27973 | -2/Research | Garrison activated, responded to threat 28005 | -2/Research | Identified exit to Garrison 28015 | -2/Research | Entered Garrison 28037 | -2/Garrison | Lost 5 allies 28060 | -2/Garrison | Rescued a captive Derelict 28060 | -2/Garrison | Rescued a captive Derelict 28173 | -2/Garrison | Q-Series assembled to engage unique threat in Access 28197 | -2/Garrison | Spotted B-90 Cyclops 28237 | -2/Garrison | Triggered checkpoint 28253 | -2/Garrison | Lost 3 allies 28322 | -2/Garrison | Q-Series assembled to engage unique threat in Access 28398 | -2/Garrison | Destroyed B-90 Cyclops 28525 | -2/Garrison | Triggered checkpoint 28536 | -2/Garrison | Garrison Relay disabled 28716 | -2/Garrison | System corruption reached 10% 28871 | -2/Garrison | QS Assembler disabled 28921 | -2/Garrison | Found Prototype Processor 28921 | -2/Garrison | Identified Exp. Target Analyzer 28932 | -2/Garrison | Found Prototype Launcher 28932 | -2/Garrison | Identified Ragnarok Missile Launcher 29127 | -2/Garrison | Triggered checkpoint 29185 | -2/Garrison | Triggered checkpoint 29197 | -2/Garrison | Garrison Relay disabled 29227 | -2/Garrison | Garrison Relay disabled 29301 | -2/Garrison | Lost 5 allies 29312 | -2/Garrison | Found Corrupted Quantum Capacitor 29369 | -2/Garrison | Found embedded Infiltrators 29374 | -2/Garrison | Found Adv. Powered Armor 29385 | -2/Garrison | Found Adv. Powered Armor 29387 | -2/Garrison | Found Adv. Powered Armor 29391 | -2/Garrison | Found Adv. Powered Armor 29492 | -2/Garrison | Discovered new exit (range 13) 29528 | -2/Garrison | Lost 3 allies 29533 | -2/Garrison | Expanded RIF knowledge: Code Merge 29557 | -2/Garrison | Triggered checkpoint 29563 | -2/Garrison | Triggered checkpoint 29601 | -2/Garrison | Discovered new exit (range 12) 29602 | -2/Garrison | Spotted B-75 Beast 29713 | -2/Garrison | Discovered new exit (range 8) 29777 | -2/Garrison | Entered Access 29777 | -1/Access | Accompanied by 6 allies 29777 | -1/Access | Evolved 2 slots: Utility x2 29878 | -1/Access | P-80 Master assimilated allied Director 9a 29915 | -1/Access | Identified exit to Surface 30208 | -1/Access | Unchained authorized (CL-0N3) 30297 | -1/Access | Spotted B-99 Colossus 30298 | -1/Access | Assimilated Colossus 10a with formatsys_high 30595 | -1/Access | Discovered new exit (range 7) 30598 | -1/Access | Entered Command 30807 | -1/Command | Spotted B-99 Colossus 30960 | -1/Command | Found Quantum Capacitor 31028 | -1/Command | Found Prototype Device 31028 | -1/Command | Identified Exp. Shield Generator 31141 | -1/Command | Found Prototype Processor 31141 | -1/Command | Identified Exp. Signal Interpreter 31289 | -1/Command | Spotted Striker 31305 | -1/Command | Destroyed Striker 31636 | -1/Command | Spotted Combat Programmer 31648 | -1/Command | Destroyed Combat Programmer 31681 | -1/Command | Spotted M Guard 31683 | -1/Command | Assimilated M Guard with formatsys_high 31683 | -1/Command | Spotted M Guard 31707 | -1/Command | Assimilated M Guard with formatsys_high 31754 | -1/Command | Spotted Combat Programmer 31777 | -1/Command | System corruption reached 10% 31799 | -1/Command | Allies destroyed Combat Programmer 32093 | -1/Command | Met MAIN.C 32114 | -1/Command | 0b10 Conduit disabled 32116 | -1/Command | All MAIN.C guards destroyed 32395 | -1/Command | MAIN.C activated Command garrisons 32399 | -1/Command | Spotted B-99 Colossus 32528 | -1/Command | Discovered exit to Surface (range 10) 32532 | *** | Escaped! Last Messages --------------- 32461_ Dismantling Wave Inhibitor with Imp. Plasma Cutter. 32471_ Wave Inhibitor dismantled. 32486_ RIF reveals location of hidden door. 32489_ Slug penetrates Wall. 32492_ Operations Mainframe disabled. 32492_ Penetrated by Slug. 32492_ Adv. Heat Sink destroyed. 32493_ Acquired 4 matter. 32496_ B-99 Colossus activates siege mode. 32496_ Knocked back. 32496_ Cmb. Linear Gravjet destroyed. 32496_ Slug penetrates Earth. 32496_ Penetrated by Slug. 32497_ Acquired 3 matter. 32500_ System corrupted: Matter fused (-9). 32500_ Slug penetrates Wall. 32500_ Penetrated by Slug. 32519_ UUYTGI>D 32528_ EXIT=FOUND: SURFACE Map ----- +----------------------------------------------------+ | ??????????######+######## | | ???????????????# #??????# ####+###### | | ???????????????# #??????# ## #???# | | ???????????????# #??????# ## #???# | | ????????????####+#####??# ## #???#### | | ????????????# #??# ## #??????? | | ????????????# #??# ## !#??????? | | ????????????# "" #### ## #??????? | | ????????????# """" # ## #??????? | | ????????????# """" + ## #??????? | | ????????????# "" # + #??????? | | ????????????# # ######??????? | | ????????????# ## ?????????? | | ????????????# "# ????????? | | ????????????#########"# ##????????? | | ????????????????????##; #?????????? | | ?????????????????????## #?????????? | | ??????????????????????# #?????????? | | ??????????????????????# #?????????? | | ??????????????????????# #######+#### #?????????? | | ??????????????????????# #??????????? #?????????? | | ??????????????????????# #??????????? #?????????? | | ??????????????????????# #??????????? #?????????? | | ??????????????????????# ###????????? #?????????? | | ??????????????????????# #??????o?? ?????????? | | ??????????????????????# @ #????????? ??????????? | | ??????????????????????# #?????????H???????????? | | ??????????????????????######?????????????????????? | | ?????????????????????????????????????????????????? | | ?????????????????????????????????????????????????? | | ?????????????????????????????????????????????????? | | ?????????????????????????????????????????????????? | | ?????????????????????????????????????????????????? | | ?????????????????????????????????????????????????? | | ?????????????????????????????????????????????????? | | ?????????????????????????????????????????????????? | | ?????????????????????????????????????????????????? | | ?????????????????????????????????????????????????? | | ?????????????????????????????????????????????????? | | ?????????????????????????????????????????????????? | | ?????????????????????????????????????????????????? | | ?????????????????????????????????????????????????? | | ?????????????????????????????????????????????????? | | ?????????????????????????????????????????????????? | | ?????????????????????????????????????????????????? | | ?????????????????????????????????????????????????? | | ?????????????????????????????????????????????????? | | ?????????????????????????????????????????????????? | | ?????????????????????????????????????????????????? | | ?????????????????????????????????????????????????? | +----------------------------------------------------+ Best States ------------- Heat Dissipation 152 Coolant Potential 100 Energy Generation 65 Energy Capacity 495 Matter Stores 500 Matter Capacity 550 Sight Range 24 Terrain Scan Range 16 Terrain Scan Density 10 Jamming Range 14 Power Amplification 30 Base Temperature (-) 200 Corruption Block 8 Armor Coverage 3200 Resistance: EX 50 Resistance: EM 90 Utility Shielding 66 Point Defense Rating 240 Weapon Cycling 25 Evasion (%) 71 Targeting Accuracy 8 Launcher Accuracy 40 Target Analysis 10 Core Analysis 6 Recoil Reduction 8 Energy Filtering 50 Particle Charging 20 Offensive Hacking 12 Relay Coupler Types 4 Relay Coupler Value 144 Authchip Count 1 Trap Extractor Capacity 6 Item Schematics ----------------- Prc. Assault Rifle | -7/Factory | Scanalyzed Robot Schematics ------------------ P-70 Sage | -5/Factory | Hacked Fabricated ------------ P-70 Sage | x2 | -3/Research Repaired ---------- Nothing Studied --------- Lgt. Treads | -7/Factory | Hacked Linear Gravjet | -5/Factory | Hacked Com. HERF Cannon | -4/Factory | Hacked Nova Cannon | -4/Factory | Hacked Adv. Remote Datajack | -3/Research | Hacked Enh. Nova Cannon | -3/Research | Hacked Alien Tech Used ----------------- None Achievements -------------- Tank Life Challenges ------------ None Game ------ Seed SeismicMetaMatrix Manual? 0 Play Time 10:05:29 Cumulative 358.7 hours Start 2025.11.01 @ 23:20:42 End 2025.11.02 @ 22:13:13 Sessions 1 Manual Loads 0 Difficulty Rogue Special Mode None Game No. 173 Rogue 165 Adventurer 8 Explorer 0 Win Type 0 Total 23 Types 13/0/4/2/0/1/1/0/1/1 Lore% 89 Gallery% 88 Achievement% 66 Wizard Run 0 Options --------- Layout 2 ASCII 0 Keyboard 1 Movement Numpad Keybinds 1 Fullscreen 1 Font 24/Smallcaps Map View 50x44 Zoom Use 0% Tactical HUD 1 Map Filters NONE Filters NONE Steam 1 RUN: b4be5faa-57c7-465b-94be-3c9beed4e9b2